Cogmind - Beta 14 X2 @@@ ROGUE MODE // 2024.08.04 @ 16:59:00 Player: Decinym Result: Core destroyed Performance ------------- Evolutions (9) 4500 Regions Visited (32) 6400 Robots Destroyed (458) 2290 Value Destroyed (25370) 25370 Prototype IDs (115) 2300 Alien Tech Used (17) 3400 Bonus (28462) 28462 TOTAL SCORE: 72722 Bonus ------- High Alert Combat Kills 5774 Follower Combat Kills 1641 Met Data Miner 300 Met Imprinter 300 Destroyed Z-Imprinter 1000 Triggered Deep Caves Wall 500 Exposed GOLEM Chamber 500 Met Zhirov 300 Met Warlord at Base 500 MAIN.C Attacked Warlord 500 Used Core Reset Matrix 3000 Met Warlord at Research 2000 Scanned by Researcher 500 Destroyed MAIN.C Guards 500 Met MAIN.C 5000 Destroyed MAIN.C Shell 5000 Met Warlord at Command 2000 Met Architect 300 Destroyed A8 300 Friendly Fire -1453 Cogmind --------- Core Integrity 0/1600 Matter 108/300 Energy 1375/1375 System Corruption 0% Temperature Cool (0) Movement Treading (153) Location -1/Access_0 Parts ------- > --- POWER (4) -------- Compact Particle Reactor Zero-point Reactor Vortex Chain Reactor > --- PROPULSION (6) --- Enhanced Armored Medium Treads Enhanced Armored Medium Treads Experimental Biometal Heavy Treads High-density Centrium Heavy Treads > --- UTILITY (13) ----- Experimental Coolant Injector Huge Storage Unit Advanced Energy Well Assembled Combat Suite Quantum Capacitor Heavy Regenerative Plating Spacefold Activator Microwarp Drive > --- WEAPON (2) ------- Multirail Hypervelocity Multirail > --- INVENTORY (25) --- Experimental Energy Well (600) Zionite Biocell (600) Zionite Biocell (600) Long-range Terrain Scanner Improved Transmission Jammer Experimental ECM Suite Experimental Cloaking Device Experimental EM Disruption Field Potential Cannon Bore Cannon Advanced Micro-nuke Launcher Core Stripper Peak State ------------ > --- POWER ------------ Assembled Flux Generator Vortex Chain Reactor > --- PROPULSION ------- Enhanced Armored Medium Treads Enhanced Armored Medium Treads Experimental Biometal Heavy Treads High-density Centrium Heavy Treads > --- UTILITY ---------- Huge Storage Unit Assembled Biocell Array Long-range Terrain Scanner Assembled Combat Suite Experimental Cloaking Device Heavy Regenerative Plating Experimental Force Field Advanced Hacking Suite GOLEM Unit Microwarp Drive > --- WEAPON ----------- Core Stripper > --- INVENTORY -------- Light Quantum Reactor Experimental Coolant Injector Experimental Energy Well Zionite Biocell Zionite Biocell Quantum Capacitor Zionite Weapon Casing Experimental EM Disruption Field Hacking Suite Advanced Hacking Suite Advanced Hacking Suite Advanced Hacking Suite High-powered Transdimensional Reconstructor Core Regenerator Integrity Redistributor Integrity Redistributor Subatomic Replicator Spacefold Activator Potential Cannon Hypervelocity Multirail Advanced Micro-nuke Launcher [Rating: 254] Favorites ----------- Power Improved Deuterium Engine Engine Improved Deuterium Engine Power Core Enhanced Nuclear Core Reactor Vortex Chain Reactor Propulsion Assembled Alloy Leg Treads Medium Treads Leg Assembled Alloy Leg Wheel Wheel Hover Unit Improved Linear Gravjet Utility Huge Storage Unit Device GOLEM Unit Storage Huge Storage Unit Processor Advanced Visual Processing Unit Hackware Advanced Hacking Suite Protection Hardened Heavy Armor Plating Artifact Microwarp Drive Weapon Assembled Focal Cannon Energy Gun High-powered Field Laser Energy Cannon Assembled Focal Cannon Ballistic Gun Hypervelocity Multirail Launcher Guided EMP Blaster Impact Weapon Core Stripper Special Melee Weapon Datajack Build | -11 -10 -10 -8 -7 -7 -7 -7 -6 -6 -6 -6 -6 -6 -5 -5 -5 -5 -5 -4 -4 -4 -4 -4 -3 -3 -3 -2 -2 -2 -1 -1 -1 ------- Run | Yrd Mat Sub Mat Fac Low Low Dat Pro Fac Low Low Zio Dee Pro Fac Upp Upp War Pro Fac Upp Upp Zhi Pro Res Tes Res Qua Sec Acc Com Ac0 Slots Evolved 18 | . . . 4 2 . . . . 2 . . . . . 2 . . . . 2 . . . . 2 . 2 . . 2 . . Power 3 | . . . . 1 . . . . . . . . . . . . . . . . . . . . . . . . . 2 . . Propulsion 4 | . . . 2 . . . . . . . . . . . . . . . . . . . . . 2 . . . . . . . Utility 11 | . . . 2 1 . . . . 2 . . . . . 2 . . . . 2 . . . . . . 2 . . . . . Weapon . | . . . . . . . . . . . . . . . . . . . . . . . . . . . . . . . . . Parts Attached 453 | . 11 12 50 46 5 4 2 . 27 . 7 6 34 . 5 8 5 6 3 12 1 4 9 3 9 36 22 19 34 15 48 10 Power 32 | . 1 1 3 7 1 . . . 2 . 1 . 1 . . . . 1 . . . . . . . 4 . 3 . . 6 1 Engine 12 | . 1 1 3 5 1 . . . . . 1 . . . . . . . . . . . . . . . . . . . . . Core 3 | . . . . 2 . . . . . . . . 1 . . . . . . . . . . . . . . . . . . . Reactor 17 | . . . . . . . . . 2 . . . . . . . . 1 . . . . . . . 4 . 3 . . 6 1 Propulsion 80 | . 4 5 18 11 2 1 . . 6 . 2 . 6 . . . . . . 2 . . 1 . 2 5 8 3 2 1 . 1 Treads 51 | . . 5 12 6 2 1 . . 6 . 2 . 4 . . . . . . . . . . . . . 6 3 2 1 . 1 Leg 24 | . 3 . 4 4 . . . . . . . . 2 . . . . . . 1 . . 1 . 2 5 2 . . . . . Wheel 4 | . 1 . 2 1 . . . . . . . . . . . . . . . . . . . . . . . . . . . . Hover 1 | . . . . . . . . . . . . . . . . . . . . 1 . . . . . . . . . . . . Flight . | . . . . . . . . . . . . . . . . . . . . . . . . . . . . . . . . . Utility 210 | . 3 2 12 8 2 3 . . 8 . 3 . 16 . 5 7 5 5 3 10 1 4 8 3 6 20 13 11 16 11 23 2 Device 136 | . 2 1 7 1 1 2 . . 4 . 1 . 7 . 3 6 3 4 3 8 1 3 6 1 5 12 9 9 12 5 20 . Storage 9 | . 1 . 1 1 . . . . . . . . 1 . . . . . . . . . 1 . . 3 . . . . . 1 Processor 11 | . . . 2 . . . . . . . 1 . . . 1 . 1 . . 1 . . . . 1 3 1 . . . . . Hackware 8 | . . . . 1 . . . . . . . . . . . . . . . . . . . . . 1 . 1 . 4 1 . Protection 39 | . . 1 2 5 1 1 . . 4 . 1 . 8 . 1 1 1 1 . 1 . 1 1 2 . 1 3 . 1 . 2 . Artifact 7 | . . . . . . . . . . . . . . . . . . . . . . . . . . . . 1 3 2 . 1 Weapon 131 | . 3 4 17 20 . . 2 . 11 . 1 6 11 . . 1 . . . . . . . . 1 7 1 2 16 3 19 6 Energy Gun 42 | . 1 2 15 14 . . 1 . 1 . . . 6 . . . . . . . . . . . . 2 . . . . . . Energy Cannon 29 | . . 1 . 1 . . . . 5 . 1 5 3 . . . . . . . . . . . . 4 . . 3 . 4 2 Ballistic Gun 27 | . 1 . . . . . . . 3 . . . . . . . . . . . . . . . . . . . 6 1 12 4 Ballistic Cannon . | . . . . . . . . . . . . . . . . . . . . . . . . . . . . . . . . . Launcher 18 | . 1 1 2 5 . . . . 2 . . . 2 . . 1 . . . . . . . . 1 1 1 1 . . . . Special Weapon . | . . . . . . . . . . . . . . . . . . . . . . . . . . . . . . . . . Impact Weapon 13 | . . . . . . . . . . . . . . . . . . . . . . . . . . . . 1 7 2 3 . Slashing Weapon . | . . . . . . . . . . . . . . . . . . . . . . . . . . . . . . . . . Piercing Weapon . | . . . . . . . . . . . . . . . . . . . . . . . . . . . . . . . . . Special Melee Weapon 2 | . . . . . . . 1 . . . . 1 . . . . . . . . . . . . . . . . . . . . Unidentified Prototypes 73 | . . . 5 5 . . . . 4 . . . 6 . 1 1 . 4 . . . . 4 . 2 16 3 8 5 . 7 2 Parts Lost 63 | . . 4 16 6 . . . . 1 . . . 12 1 . . . . . . . . . . 2 10 2 . 1 1 6 1 Power 9 | . . 1 2 1 . . . . . . . . 2 . . . . . . . . . . . . 1 . . . . 1 1 Propulsion 19 | . . 2 10 1 . . . . . . . . 3 . . . . . . . . . . . . 3 . . . . . . Utility 29 | . . 1 2 3 . . . . 1 . . . 6 1 . . . . . . . . . . 2 6 2 . 1 . 4 . Weapon 6 | . . . 2 1 . . . . . . . . 1 . . . . . . . . . . . . . . . . 1 1 . Highest Loss Streak 10 | . . 2 10 2 . . . . 1 . . . 8 1 . . . . . . . . . . 1 6 2 . 1 1 4 5 To Critical Strikes 3 | . . . 1 . . . . . . . . . 1 . . . . . . . . . . . . . . . 1 . . . Average Slot Usage (%) 85 | . 98 99 94 88 90 92 92 92 89 93 91 79 82 85 82 81 80 81 81 84 84 83 79 86 89 88 91 89 73 71 77 59 Engine 3 | . 13 13 8 10 7 7 7 7 6 6 6 9 3 . . . . . . . . . . . . . . . . . . . Reactor 4 | . . . . . . . . . 3 6 5 4 4 5 5 5 5 5 5 5 5 5 5 5 4 6 8 7 4 8 11 10 Treads 13 | . . 27 23 19 27 30 30 30 25 26 26 27 23 . . . . . . . . . . . . . 11 21 16 16 16 15 Leg 10 | . 16 . 4 8 . . . . . . . . 2 26 23 23 22 23 23 20 21 21 19 21 28 27 13 . . . . . Device 17 | . 12 12 9 7 14 15 15 15 18 20 19 13 12 19 16 15 17 16 17 25 25 26 28 25 20 26 30 26 28 22 15 12 Storage 8 | . 14 14 9 7 7 7 7 7 6 6 5 4 8 13 10 11 10 11 11 10 10 10 10 10 9 9 8 13 8 7 4 6 Processor 1 | . . . 9 1 . . . . . . . 4 1 . 2 . . . . . . . . . 2 2 1 . . . . . Hackware 1 | . . . . 5 . . . . . . . . . . . . . . . . . . . . . . . 2 1 3 14 . Protection 8 | . . . 6 8 7 6 7 7 12 13 12 9 9 6 10 10 10 11 11 10 10 9 8 12 14 4 5 6 5 4 4 4 Energy Gun 3 | . 14 15 16 13 15 15 12 15 8 . . . 1 . . . . . . . . . . . . . . . . . . . Energy Cannon 6 | . . 10 1 . . . . . 1 13 12 6 9 13 11 10 10 11 10 10 10 9 6 9 8 7 7 6 3 3 . 2 Naked Turns . | . . . . . . . . . . . . . . . . . . . . . . . . . . . . . . . . . Heaviest Build 228 | 11 48 61 97 134 129 128 128 128 160 157 181 184 189 165 180 194 194 194 189 191 191 191 194 194 186 175 183 188 186 228 220 204 Greatest Support 245 | 20 20 40 80 80 90 90 90 90 98 98 154 154 154 116 136 116 116 116 116 136 116 116 118 118 168 193 230 230 245 245 245 245 Greatest Overweight (x) 31 | . 4 4 31 4 4 1 1 1 1 1 1 1 5 1 1 1 1 1 1 2 1 1 1 1 1 1 5 1 . . . . Average Overweight (x) . | . 2 1 2 1 1 1 1 1 1 1 1 1 1 1 1 1 1 1 1 1 1 1 1 1 . . . . . . . . Largest Inventory Capacity 25 | . 20 20 25 25 25 25 25 25 25 25 25 25 25 25 25 25 25 25 25 25 25 25 25 25 25 25 25 25 25 25 25 25 Average Capacity 24 | . 17 20 23 25 25 25 25 25 25 25 25 25 25 25 25 25 25 25 25 25 25 25 25 25 25 25 25 25 25 25 25 25 Most Carried 25 | . 11 17 25 25 25 25 25 25 25 25 25 24 25 25 25 25 25 25 25 25 25 25 25 25 25 25 25 25 25 25 25 17 Average Carried 23 | . 9 14 21 23 24 24 25 25 24 25 24 22 23 24 24 24 25 24 25 24 24 25 24 23 24 24 24 24 24 24 23 14 Final Capacity 25 | 8 20 20 25 25 25 25 25 25 25 25 25 25 25 25 25 25 25 25 25 25 25 25 25 25 25 25 25 25 25 25 25 25 Final Carried 25 | 6 11 16 22 24 25 25 25 25 25 25 21 24 25 25 25 25 25 25 25 25 25 25 25 23 25 25 25 25 25 21 16 14 Class Distribution -------------------- 35% | Golem 27% | Scavenger-Mutant 14% | Mutant 4% | Commander-Golem 4% | Hacker-Mutant 3% | Scavenger-Golem 3% | Alien-Mutant 3% | Infiltrator-Mutant Dominant Class ---------------- Mutant | -10/Materials Scavenger-Mutant | -10/Subcaves Scavenger-Mutant | -8/Materials Mutant | -7/Factory Scavenger-Mutant | -7/Lower Caves Scavenger-Mutant | -7/Lower Caves Mutant | -7/Data Miner Mutant | -6/Proximity Caves Scavenger-Mutant | -6/Factory Scavenger-Mutant | -6/Lower Caves Scavenger-Mutant | -6/Lower Caves Scavenger-Mutant | -6/Zion Scavenger-Golem | -6/Deep Caves Golem | -5/Proximity Caves Golem | -5/Factory Golem | -5/Upper Caves Golem | -5/Upper Caves Golem | -5/Warlord Commander-Golem | -4/Proximity Caves Commander-Golem | -4/Factory Golem | -4/Upper Caves Golem | -4/Upper Caves Golem | -4/Zhirov Golem | -3/Proximity Caves Golem | -3/Research Golem | -3/Testing Golem | -2/Research Infiltrator-Mutant | -2/Quarantine Alien-Mutant | -2/Section 7 Generator-Mutant | -1/Access Hacker-Mutant | -1/Command Generator-Mutant | -1/Access_0 Resources | -11 -10 -10 -8 -7 -7 -7 -7 -6 -6 -6 -6 -6 -6 -5 -5 -5 -5 -5 -4 -4 -4 -4 -4 -3 -3 -3 -2 -2 -2 -1 -1 -1 ----------- Run | Yrd Mat Sub Mat Fac Low Low Dat Pro Fac Low Low Zio Dee Pro Fac Upp Upp War Pro Fac Upp Upp Zhi Pro Res Tes Res Qua Sec Acc Com Ac0 Matter Collected 8292 | 200 150 272 531 848 98 44 . 61 456 33 112 65 608 47 51 135 30 80 30 120 50 81 . 218 105 987 222 236 452 293 1608 69 Remotely . | . . . . . . . . . . . . . . . . . . . . . . . . . . . . . . . . . Salvage Created 28083 | . 483 377 2048 2125 331 . . 234 1057 159 172 . 1806 175 457 946 392 . 378 788 483 139 . 1082 1786 3527 473 1549 1750 1773 3462 131 Parts 1162 | . 32 29 71 85 16 . . 10 51 10 13 . 38 14 31 36 10 . 10 48 14 . . 41 77 171 21 61 54 72 140 7 Haulers Intercepted 17 | . 2 . 3 5 . . . . 3 . . . . . 1 1 . . . . . . . . 1 . 1 . . . . . Recyclers Shooed 7 | . . . . 3 . . . . 1 . . . . . . . . . . 1 . . . . . . . . 1 . 1 . Parts Field Recycled . | . . . . . . . . . . . . . . . . . . . . . . . . . . . . . . . . . Retrieved Matter . | . . . . . . . . . . . . . . . . . . . . . . . . . . . . . . . . . Parts Self-Destructed 231 | . . 20 . . 17 . . 10 . 10 13 3 . 16 . 35 12 . 40 . 14 . . 41 . . . . . . . . Prevented 11 | . . . . . . . . . . 1 . . . . . . . . 10 . . . . . . . . . . . . . Kills | -11 -10 -10 -8 -7 -7 -7 -7 -6 -6 -6 -6 -6 -6 -5 -5 -5 -5 -5 -4 -4 -4 -4 -4 -3 -3 -3 -2 -2 -2 -1 -1 -1 ------- Run | Yrd Mat Sub Mat Fac Low Low Dat Pro Fac Low Low Zio Dee Pro Fac Upp Upp War Pro Fac Upp Upp Zhi Pro Res Tes Res Qua Sec Acc Com Ac0 Combat Hostiles Destroyed 438 | . 11 12 31 37 8 . . 3 13 4 4 . 62 5 8 15 6 . 5 10 6 . . 16 22 50 5 21 21 21 39 3 Guns 153 | . 8 8 24 21 8 . . 3 11 . . . 2 . . . . . . . . . . . . . . . 14 19 34 1 Cannons 179 | . . 3 1 . . . . . 2 3 4 . 14 5 8 12 6 . 5 10 6 . . 16 22 38 5 15 2 . 1 1 AOE 72 | . 3 . 3 13 . . . . . . . . 36 . . 3 . . . . . . . . . 7 . 5 . . 2 . Classes Destroyed 31 | . 6 1 6 2 . . . 1 . . 1 . 4 . . . . . . . . . . 1 . 2 2 2 1 1 1 . Worker 15 | . . . 3 4 . . . . 1 . . . . . . . . . . 1 . . . . . . . . . . 6 . Builder 8 | . 1 . 1 1 . . . . 1 . . . . . 1 . . . . . . . . . . 1 1 . . 1 . . Hauler 17 | . 2 . 3 5 . . . . 3 . . . . . 1 1 . . . . . . . . 1 . 1 . . . . . Recycler 14 | . 1 . 5 5 . . . . . . . . . . . . . . . 2 . . . . 1 . . . . . . . Minesweeper 1 | . . . . . . . . . . . . . . . . . . . . . . . . 1 . . . . . . . . Operator 3 | . 1 . . . . . . . 1 . . . . . . . . . . . . . . . . . . . . 1 . . Drone 1 | . . . . . . . . 1 . . . . . . . . . . . . . . . . . . . . . . . . Watcher 11 | . . . 1 1 . . . . . . . . . . 1 . . . . 1 . . . . . 1 . 2 1 . 3 . Swarmer 67 | . 6 5 4 12 4 . . . . 2 3 . . 4 5 1 . . . 7 . . . 3 3 3 . 2 3 . . . Saboteur 1 | . . . . . . . . . . . . . . . . . . . . . . . . . . . . 1 . . . . Grunt 150 | . 5 2 15 19 2 . . . 6 . . . . . 1 7 5 . 3 1 6 . . 11 6 24 . 7 11 9 10 . Brawler 6 | . . . . 1 1 . . . . . . . . . . 1 1 . . . . . . . . 2 . . . . . . Duelist 8 | . . . 2 1 . . . . . . . . . . . 2 . . . . . . . . . 1 . 1 . . 1 . Protector 1 | . . . . . . . . . . . . . . . . . . . . . . . . . . 1 . . . . . . Researcher 1 | . . . . . . . . . . . . . . . . . . . . . . . . . . . . . 1 . . . Sentry 32 | . . . 8 1 1 . . 1 2 1 . . . . . 1 . . 2 . . . . . 2 6 . . 3 2 2 . Specialist 4 | . . . . . . . . . . . . . . . . . . . . . . . . . . 3 . . . . 1 . Hunter 29 | . . . 1 1 . . . . 2 . . . . . . 3 . . . 1 . . . 2 4 1 . 2 . 6 6 . Programmer 51 | . . . . 2 . . . 1 3 1 . . . . 2 . . . . 1 . . . . 6 9 2 7 2 2 13 . Heavy 5 | . . . 1 . . . . . . . . . . . . . . . . 1 . . . . . . . . 1 1 1 . Q-Series 1 | . . . . . . . . . . . . . . . . . . . . . . . . . . . . . . 1 . . Behemoth 4 | . . . . . . . . . . . 1 . . 1 . . . . . . . . . . 1 . . . . . 1 . S7 Guard 1 | . . . . . . . . . . . . . . . . . . . . . . . . . . . . . 1 . . . Enhanced Grunt 2 | . . . . . . . . . . . . . . . . . . . . . . . . . . . . . . . . 2 Combat Programmer 2 | . . . . . . . . . . . . . . . . . . . . . . . . . . . . . . . 2 . Striker 2 | . . . . . . . . . . . . . . . . . . . . . . . . . . . 2 . . . . . Executioner 1 | . . . . . . . . . . . . . . . . . . . . . . . . . . . 1 . . . . . Alpha 7 1 | . . . . . . . . . . . . . . . . . . . . . . . . . . . . . . . 1 . Fortress 1 | . . . . . . . . . . . . . . . . . . . . . . . . . . . . 1 . . . . Subdweller 5 | . . 5 . . . . . . . . . . . . . . . . . . . . . . . . . . . . . . Z-Technician 4 | . . . . . . . . . . . . . 4 . . . . . . . . . . . . . . . . . . . Z-Light 7 | . . . . . . . . . . . . . 7 . . . . . . . . . . . . . . . . . . . Assembler 2 | . . . . . . . . . . . . . 2 . . . . . . . . . . . . . . . . . . . Assembled 47 | . . . . . . . . . . . . . 47 . . . . . . . . . . . . . . . . . . . Golem 8 | . . . . . . . . . . . . . 8 . . . . . . . . . . . . . . . . . . . Wasp 1 | . . . . . . . . . . . . . . . . . . . . . . . . . . . . . . . 1 . Best Kill Streak 41 | . 5 4 5 9 3 . . 2 4 1 2 . 41 4 7 7 4 . 2 5 3 . . 4 8 9 4 5 6 6 8 3 Combat Bots Only 39 | . 5 4 5 7 3 . . 2 4 1 2 . 39 4 6 7 4 . 2 4 3 . . 4 7 8 2 5 6 6 7 3 Max Kills in Single Turn 10 | . 2 1 2 2 1 . . 1 2 1 1 . 10 1 2 2 1 . 2 2 1 . . 1 2 3 1 3 2 1 2 1 Gunslinging 1 | . . . . . . . . . . . . . . . . . . . . . . . . . . . . . . . 1 . Exploded 10 | . 2 . 2 2 . . . . . . . . 10 . . 2 . . . . . . . . . 3 . 3 . . 1 . Melee . | . . . . . . . . . . . . . . . . . . . . . . . . . . . . . . . . . Uniques/NPCs Destroyed 3 | . . . . . . . . . . . . . 1 . . . . . . . . . . . . . . . . . 1 1 Z-Imprinter (-6/Deep Caves) MAIN.C Shell (-1/Command) A8 (-1/Access_0) Combat | -11 -10 -10 -8 -7 -7 -7 -7 -6 -6 -6 -6 -6 -6 -5 -5 -5 -5 -5 -4 -4 -4 -4 -4 -3 -3 -3 -2 -2 -2 -1 -1 -1 -------- Run | Yrd Mat Sub Mat Fac Low Low Dat Pro Fac Low Low Zio Dee Pro Fac Upp Upp War Pro Fac Upp Upp Zhi Pro Res Tes Res Qua Sec Acc Com Ac0 Hostile Shots Fired 3449 | . 46 70 187 283 85 . . 32 154 18 63 . 203 71 47 86 8 . 59 14 32 . . 98 147 351 32 98 244 291 613 117 Missed 1190 | . 13 19 60 81 34 . . 10 59 9 17 . 72 22 14 16 3 . 21 9 15 . . 35 57 139 12 30 84 112 210 37 Intercepted 8 | . . . . . . . . . . . . . . . . . . . . . . . . . . . . . . . 8 . Damage Taken 34675 | . 329 873 2223 3342 527 . . 174 976 62 462 . 3395 642 446 738 53 . 576 96 136 . . 538 1555 3715 711 951 2241 1969 5281 2664 Core 3968 | . 47 173 220 244 75 . . 17 135 14 20 . 490 80 45 11 . . 56 15 7 . . 9 178 314 . 228 502 358 296 434 Absorbed by Shields 9924 | . . . . . . . . . 251 23 144 . . . . 325 41 . 197 81 150 . . 539 391 60 21 394 1866 1628 3813 . Reduced by Siege Mode 55 | . . . . . . . . . . . . . . . . . . . . . . . . . . . . . . . 51 4 Redirected to Core 167 | . . . . . . . . . . . . . . . . . . . . . . . . . . . . 167 . . . . Redirected to Shielding 638 | . . . 94 70 19 . . . . . . . 163 . . . . . . . . . . . 121 . . . . . 171 . Ignored by Resistances 6794 | . . . 27 . . . . . 145 10 198 . . 134 98 217 18 . 164 34 60 . . 228 404 642 128 269 387 611 2992 28 Regen/Repaired (Parts) 11328 | . . . 329 90 . . . . 1440 . . . . . . . . 123 . . . . . . . 120 . . 3057 313 5707 149 Core Remaining (%) 55 | 100 . 12 60 . . . . 52 . . . . . 13 . . . . 88 . . . . 97 . 62 . . 12 . . . Volleys Fired 1329 | . 44 50 133 124 20 2 . 13 65 6 20 4 118 23 21 38 12 8 24 22 12 11 . 41 63 110 30 58 42 51 141 23 Largest 2 | . 2 2 2 2 2 1 . 2 2 2 2 1 2 2 2 2 2 1 2 2 2 2 . 2 2 2 2 2 2 1 2 2 Hottest 200 | . 60 120 122 140 140 70 . 140 180 180 180 90 180 50 50 50 50 25 50 50 50 50 . 50 50 200 50 50 50 50 200 200 Shots Fired 2327 | . 85 83 254 215 40 3 1 25 125 13 39 4 193 47 42 72 24 8 47 44 24 26 . 82 126 176 43 98 46 51 261 30 Gun 1149 | . 82 49 248 194 40 3 1 25 110 . . . 65 . . . . . . . . . . . . . . . 29 45 244 14 Cannon 1121 | . . 32 3 . . . . . 12 13 39 4 112 47 42 69 24 8 47 44 24 26 . 82 126 172 43 96 17 6 17 16 Launcher 57 | . 3 2 3 21 . . . . 3 . . . 16 . . 3 . . . . . . . . . 4 . 2 . . . . Special . | . . . . . . . . . . . . . . . . . . . . . . . . . . . . . . . . . Kinetic 418 | . 41 10 2 13 . . . . 20 . . . . . . . . . . . . . . . . . . . 29 45 244 14 Thermal 1767 | . 28 71 251 182 40 3 1 25 102 13 39 4 112 47 42 69 24 8 47 44 24 26 . 82 126 170 43 96 9 6 17 16 Explosive 31 | . 3 2 1 3 . . . . 3 . . . 10 . . 3 . . . . . . . . . 4 . 2 . . . . Electromagnetic 101 | . 13 . . 17 . . . . . . . . 71 . . . . . . . . . . . . . . . . . . . Entropic 10 | . . . . . . . . . . . . . . . . . . . . . . . . . . 2 . . 8 . . . Robot Hit Streak 32 | . 16 26 25 18 5 . . 5 16 4 11 . 24 10 9 14 8 . 10 8 16 11 . 15 29 24 10 11 16 10 32 24 Robot Miss Streak 7 | . 3 2 3 3 4 . . 6 3 2 6 . 7 2 2 3 3 . 3 1 1 . . 1 2 3 1 4 2 4 7 3 Penetration Max 2 | . . . . . . . . . . . . . . . . . . . . . . . . . . 1 . . 1 1 2 . Secondary Targets 20 | . 3 . 2 6 2 . . . . . . . 1 . . . . . . . . . . . . . . . . . 6 . Max Gunslinging Chain 1 | . 1 . 1 1 1 . . . . . . . 1 . . . . . . . . . . . . . . . . . 1 . Capacitor 32 | . . . . . . . . . . . . . . . . . . . . . . . . . . . 5 . . . 11 16 Shots Hit Robots 1621 | . 56 56 201 139 22 . 1 14 87 7 22 1 118 24 24 51 12 . 30 28 16 4 . 56 84 128 26 59 49 46 240 20 Core Hits 1008 | . 31 17 70 86 11 . . 7 40 4 6 . 164 6 10 25 8 . 15 16 12 2 . 22 36 86 9 30 41 40 192 22 Critical Kills 70 | . . 1 . . . . . . . 1 . . 1 . . . . . . . . . . . . 5 . . 15 20 26 1 Critical Parts Destroyed 63 | . . . . . . . . . . . . . . . . . . . . . . . . . . . . . 13 13 35 2 Critical Strikes 185 | . . 1 19 12 4 . . 1 8 1 . . 1 . . . . . . . . . . . . 6 . . 28 34 67 3 Burn 44 | . . . 19 12 4 . . 1 8 . . . . . . . . . . . . . . . . . . . . . . . Meltdown 9 | . . 1 . . . . . . . 1 . . 1 . . . . . . . . . . . . 5 . . . . . 1 Destroy 131 | . . . . . . . . . . . . . . . . . . . . . . . . . . . . . 28 34 67 2 Sunder 1 | . . . . . . . . . . . . . . . . . . . . . . . . . . 1 . . . . . . Melee Attacks 37 | . . . . . . . 1 . . . . 1 . . . . . . . . . . . . . . . 2 18 4 11 . Kinetic 35 | . . . . . . . . . . . . . . . . . . . . . . . . . . . . 2 18 4 11 . Impact . | . . . . . . . . . . . . . . . . . . . . . . . . . . . . . . . . . Slashing . | . . . . . . . . . . . . . . . . . . . . . . . . . . . . . . . . . Piercing . | . . . . . . . . . . . . . . . . . . . . . . . . . . . . . . . . . Sneak Attacks 4 | . . . . . . . 1 . . . . 1 . . . . . . . . . . . . . . . . 1 . 1 . Combat Hostiles 1 | . . . . . . . . . . . . . . . . . . . . . . . . . . . . . 1 . . . Follow-up Attacks . | . . . . . . . . . . . . . . . . . . . . . . . . . . . . . . . . . Damage Inflicted 65355 | . 806 821 4169 4616 488 . . 323 2280 203 699 . 7034 1324 1210 2904 581 . 1447 1244 762 167 . 3306 4784 7487 1694 3491 1058 514 8991 2952 Guns 17968 | . 564 433 3817 3142 488 . . 323 1870 . . . 1122 . . . . . . . . . . . . . . . 388 411 5231 179 Cannons 33919 | . . 388 26 . . . . . 271 203 699 . 1729 1324 1210 2268 581 . 1447 1244 762 167 . 3306 4763 5926 1673 2810 167 . 1731 1224 Explosions 12087 | . 242 . 326 1474 . . . . 139 . . . 4183 . . 636 . . . . . . . . . 1497 . 632 . . 1409 1549 Melee 1155 | . . . . . . . . . . . . . . . . . . . . . . . . . . . . 49 496 29 581 . Ramming 226 | . . . . . . . . . . . . . . . . . . . . . . . . . 21 64 21 . 7 74 39 . Kinetic 9367 | . 226 81 326 994 . . . . 376 . . . . . . . . . . . . . . . . . . 49 884 440 5812 179 Thermal 46707 | . 330 740 3843 3019 488 . . 323 1765 203 699 . 1879 1324 1210 2268 581 . 1447 1244 762 167 . 3306 4763 5783 1673 2810 167 . 3140 2773 Explosive 6925 | . 158 . . 162 . . . . 139 . . . 3701 . . 636 . . . . . . . . . 1497 . 632 . . . . Electromagnetic 1987 | . 92 . . 441 . . . . . . . . 1454 . . . . . . . . . . . . . . . . . . . Impact . | . . . . . . . . . . . . . . . . . . . . . . . . . . . . . . . . . Slashing . | . . . . . . . . . . . . . . . . . . . . . . . . . . . . . . . . . Piercing . | . . . . . . . . . . . . . . . . . . . . . . . . . . . . . . . . . Entropic 143 | . . . . . . . . . . . . . . . . . . . . . . . . . . 143 . . . . . . Highest Corruption 13 | . 6 6 3 4 4 4 4 5 5 5 5 5 13 13 . . . . . 4 4 4 4 4 3 7 . 2 7 . . . Average Corruption 5 | . 4 6 1 3 4 4 4 4 2 5 5 5 12 13 . . . . . 4 4 4 4 4 2 4 . 1 3 . . . Corruption Purged 2 | . . . 2 . . . . . . . . . . . . . . . . . . . . . . . . . . . . . Corruption Blocked . | . . . . . . . . . . . . . . . . . . . . . . . . . . . . . . . . . Effects 556 | . 26 61 14 30 16 15 4 17 21 14 18 2 81 33 . . . . . 1 27 54 13 30 5 45 . 9 20 . . . Message Errors 141 | . 7 19 1 4 1 2 . 4 8 4 5 . 19 10 . . . . . 1 11 16 3 13 . 8 . 2 3 . . . Matter Fused 125 | . 3 13 5 5 5 5 . 2 4 5 4 1 21 5 . . . . . . 7 9 3 4 1 16 . 2 5 . . . Heat Flow Errors 69 | . 2 12 1 2 1 1 . 3 2 1 1 . 11 5 . . . . . . 2 5 4 4 1 9 . . 2 . . . Energy Discharges 69 | . 7 4 3 6 1 2 1 5 1 1 1 . 12 4 . . . . . . 2 5 2 2 1 3 . 1 5 . . . Parts Rejected 9 | . 1 . . 2 1 . . . 1 . 1 . . . . . . . . . . . . 1 . 1 . . 1 . . . Parts Fused 4 | . . . . . . 1 . . 1 1 . . . . . . . . . . . . . 1 . . . . . . . . Data Loss (minor) 50 | . 1 3 2 5 3 3 1 1 2 1 3 . 4 1 . . . . . . 3 7 1 2 1 3 . 1 2 . . . Data Loss (major) 33 | . 3 5 1 1 1 . . 1 . . 1 1 2 6 . . . . . . 1 5 . 1 1 2 . . 1 . . . Misfires 24 | . . 2 1 . 2 1 1 . 1 1 1 . 6 1 . . . . . . . 4 . 1 . 1 . . 1 . . . Alerts 20 | . 2 3 . 1 1 . 1 . 1 . . . 3 1 . . . . . . 1 3 . 1 . . . 2 . . . . Weapon Failures 12 | . . . . 4 . . . 1 . . 1 . 3 . . . . . . . . . . . . 2 . 1 . . . . Overload Shots 4 | . . . . . . . . . 1 . . 3 . . . . . . . . . . . . . . . . . . . . Effects 1 | . . . . . . . . . 1 . . . . . . . . . . . . . . . . . . . . . . . Short Circuit 1 | . . . . . . . . . 1 . . . . . . . . . . . . . . . . . . . . . . . Overflow Damage 2050 | . 4 . . . . . . . . . 1 . 342 96 135 130 29 . . 99 . 26 . 202 255 238 122 248 8 54 14 47 Projectiles 1622 | . . . . . . . . . . . 1 . 102 96 135 83 29 . . 99 . 26 . 202 255 222 122 242 . . 6 2 Explosions 350 | . 4 . . . . . . . . . . . 240 . . 47 . . . . . . . . . . . 6 . . 8 45 Melee 78 | . . . . . . . . . . . . . . . . . . . . . . . . . . 16 . . 8 54 . . Knockbacks 2 | . . . . . . . . . . . . . . . . . . . . . . . . . . . 1 . . 1 . . Impact 2 | . . . . . . . . . . . . . . . . . . . . . . . . . . . 1 . . 1 . . Kinetic . | . . . . . . . . . . . . . . . . . . . . . . . . . . . . . . . . . Secondary . | . . . . . . . . . . . . . . . . . . . . . . . . . . . . . . . . . Self-Inflicted Damage 332 | . . . . 32 . . . . . . . . 143 . . . . . . . . . . . . 109 . . . . . 48 Shots 11 | . . . . 1 . . . . . . . . 5 . . . . . . . . . . . . 2 . . . . . 3 Rammed 4 | . . . . . . . . . . . . . . . . . . . . . . . . . . . . . 1 2 1 . Targets Rammed 11 | . . . . . . . . . . . . . . . . . . . . . . . . . 2 3 1 . 1 2 2 . Kicked 6 | . . . . . . . . . . . . . . . . . . . . . . . . . 2 3 1 . . . . . Crushed 1 | . . . . . . . . . . . . . . . . . . . . . . . . . . . . . . . 1 . Highest Temperature 421 | . 265 251 390 421 349 105 . 188 393 141 334 . 260 251 . 33 7 . 35 . 162 200 204 215 218 190 . 87 323 24 392 198 Average Temperature 104 | . 56 94 147 130 122 60 . 35 114 41 147 . 84 112 . 12 3 . 12 . 83 96 96 92 140 97 . 52 91 12 88 100 Received Heat Transfer 4734 | . 105 114 585 933 135 . . 48 284 7 60 . 498 36 9 136 38 . 146 . 39 . . 112 215 749 . 66 172 93 154 . Effects 12 | . . . 1 5 . . . . 5 . 1 . . . . . . . . . . . . . . . . . . . . . Shutdowns 2 | . . . 1 1 . . . . . . . . . . . . . . . . . . . . . . . . . . . . Energy Bleed 2 | . . . . 1 . . . . 1 . . . . . . . . . . . . . . . . . . . . . . . Interference 5 | . . . . 2 . . . . 2 . 1 . . . . . . . . . . . . . . . . . . . . . Matter Decay 2 | . . . . 1 . . . . 1 . . . . . . . . . . . . . . . . . . . . . . . Short Circuit 1 | . . . . . . . . . 1 . . . . . . . . . . . . . . . . . . . . . . . Siege Activations 3 | . . . . . . . . . . . . . . . . . . . . . . . . . . . . . . . 2 1 Total Turns 83 | . . . . . . . . . . . . . . . . . . . . . . . . . . . . . . . 78 5 Longest Duration 61 | . . . . . . . . . . . . . . . . . . . . . . . . . . . . . . . 61 5 Robots Corrupted 12 | . . . . 2 . . . . . . . . 9 . . . . . . . . . . . . . . . . 1 . . Combat Hostiles 11 | . . . . 2 . . . . . . . . 9 . . . . . . . . . . . . . . . . . . . Parts Fried 9 | . . . . 2 . . . . . . . . 5 . . . . . . . . . . . . . . . . 2 . . Impact Corruptions 3 | . . . . . . . . . . . . . . . . . . . . . . . . . . 1 . . . 2 . . Robots Melted 13 | . . 1 3 1 . . . . . 1 . . 1 . . . . . . . . . . . . 5 . . . . . 1 Combat Hostiles 13 | . . 1 3 1 . . . . . 1 . . 1 . . . . . . . . . . . . 5 . . . . . 1 Parts Melted 85 | . 1 2 18 14 2 . . . 11 1 1 . 2 . 1 1 . . 1 1 1 . . 3 3 18 2 1 . . . 1 Heat Transferred 41279 | . 600 1318 8812 5983 1110 . . 592 3330 259 888 . 2036 650 625 1225 300 . 812 700 425 100 . 1400 2200 2937 725 1375 100 . 879 1898 Parts Sabotaged 2 | . . . . . . . . . . . . . . . . . . . . . . . . . . 1 . . 1 . . . Parts Stolen . | . . . . . . . . . . . . . . . . . . . . . . . . . . . . . . . . . Parts Stripped 138 | . . . . . . . . . . . . . . . . . . . . . . . . . . . . 18 54 34 32 . Power Chain Reactions 5 | . . . . 2 . . . . . . . . 3 . . . . . . . . . . . . . . . . . . . Alert | -11 -10 -10 -8 -7 -7 -7 -7 -6 -6 -6 -6 -6 -6 -5 -5 -5 -5 -5 -4 -4 -4 -4 -4 -3 -3 -3 -2 -2 -2 -1 -1 -1 ------- Run | Yrd Mat Sub Mat Fac Low Low Dat Pro Fac Low Low Zio Dee Pro Fac Upp Upp War Pro Fac Upp Upp Zhi Pro Res Tes Res Qua Sec Acc Com Ac0 Peak Influence 1365 | . 323 . 545 885 . . . . 236 . . . . . 204 . . . . 809 . . . . 458 1365 893 926 1100 1043 1102 . Initial 720 | . . . 57 82 . . . . 150 . . . . . . . . . . 35 . . . . . 175 720 366 457 611 603 . Average 451 | . 202 . 183 309 . . . . 114 . . . . . 38 . . . . 349 . . . . 188 637 752 537 752 752 886 . Maximum Alert Level 4 | . 1 . 2 3 . . . . 1 . . . . . 1 . . . . 3 . . . . 2 4 3 3 4 3 4 . Low Security (%) 34 | . 39 . 63 56 . . . . 96 . . . . . 97 . . . . 50 . . . . 53 4 . . . . . . Level 1 13 | . 60 . 31 10 . . . . 3 . . . . . 2 . . . . 2 . . . . 37 4 . 23 . . . . Level 2 22 | . . . 5 17 . . . . . . . . . . . . . . . 31 . . . . 9 66 2 57 51 51 11 . Level 3 27 | . . . . 15 . . . . . . . . . . . . . . . 15 . . . . . 17 97 19 48 48 86 . Level 4 . | . . . . . . . . . . . . . . . . . . . . . . . . . . 6 . . . . 1 . Level 5 . | . . . . . . . . . . . . . . . . . . . . . . . . . . . . . . . . . High Security . | . . . . . . . . . . . . . . . . . . . . . . . . . . . . . . . . . Max Security . | . . . . . . . . . . . . . . . . . . . . . . . . . . . . . . . . . Squads Dispatched 83 | . 2 . 3 10 . . . . 7 . . . . . 2 . . . 1 1 . . . . 7 14 1 6 9 6 14 . Investigation 7 | . 1 . . . . . . . . . . . . . . . . . 1 . . . . . . 3 . 1 . . 1 . Extermination 23 | . . . . 2 . . . . 2 . . . . . 1 . . . . 1 . . . . 2 3 . 2 2 2 6 . Reinforcement 31 | . 1 . 1 8 . . . . 4 . . . . . 1 . . . . . . . . . 4 2 1 1 3 1 4 . Assault 15 | . . . 1 . . . . . . . . . . . . . . . . . . . . . . 3 . 2 4 2 3 . Garrison 7 | . . . 1 . . . . . 1 . . . . . . . . . . . . . . . 1 3 . . . 1 . . Intercept . | . . . . . . . . . . . . . . . . . . . . . . . . . . . . . . . . . Searches Triggered . | . . . . . . . . . . . . . . . . . . . . . . . . . . . . . . . . . Construction Impeded 5 | . . . . 3 . . . . 1 . . . . . . . . . . . . . . . . . . . . 1 . . Haulers Reinforced 6 | . . . . 2 . . . . 2 . . . . . . . . . . . . . . . 2 . . . . . . . Active Scanning Responses . | . . . . . . . . . . . . . . . . . . . . . . . . . . . . . . . . . Cargo Convoy Interrupts 1 | . . . . . . . . . 1 . . . . . . . . . . . . . . . . . . . . . . . Stealth | -11 -10 -10 -8 -7 -7 -7 -7 -6 -6 -6 -6 -6 -6 -5 -5 -5 -5 -5 -4 -4 -4 -4 -4 -3 -3 -3 -2 -2 -2 -1 -1 -1 --------- Run | Yrd Mat Sub Mat Fac Low Low Dat Pro Fac Low Low Zio Dee Pro Fac Upp Upp War Pro Fac Upp Upp Zhi Pro Res Tes Res Qua Sec Acc Com Ac0 Distress Signals 31 | . 1 . 5 3 . . . . 4 . . . . . . . . 2 . . . . . . . . 4 1 2 4 5 . Communications Jammed 66 | . . . . . . . . . . . . . . . 1 . . . 21 9 . . . . 1 . . 5 29 . . . Distress Signals 61 | . . . . . . . . . . . . . . . 1 . . . 21 5 . . . . . . . 5 29 . . . Times Spotted 709 | . 20 13 52 49 8 . . 5 20 4 4 . 74 6 12 19 7 . 22 23 6 . . 18 28 69 25 27 55 54 78 11 Peak Tracking Total 37 | . 5 4 7 6 3 . . 2 3 3 3 . 37 5 5 9 4 . 5 6 3 . . 4 4 11 8 5 10 22 9 4 Tactical Retreats 50 | . . 1 4 . . . . . 1 1 . . 11 2 . 4 . . . . . . . 1 . 5 3 . 6 7 4 . Traps | -11 -10 -10 -8 -7 -7 -7 -7 -6 -6 -6 -6 -6 -6 -5 -5 -5 -5 -5 -4 -4 -4 -4 -4 -3 -3 -3 -2 -2 -2 -1 -1 -1 ------- Run | Yrd Mat Sub Mat Fac Low Low Dat Pro Fac Low Low Zio Dee Pro Fac Upp Upp War Pro Fac Upp Upp Zhi Pro Res Tes Res Qua Sec Acc Com Ac0 Traps Triggered 15 | . 5 . . 3 . . . . . . . . . . . . . . . 1 . . . . . 3 . . 2 . 1 . Indirectly . | . . . . . . . . . . . . . . . . . . . . . . . . . . . . . . . . . Trap Hack Attempts . | . . . . . . . . . . . . . . . . . . . . . . . . . . . . . . . . . Triggered . | . . . . . . . . . . . . . . . . . . . . . . . . . . . . . . . . . Disarmed . | . . . . . . . . . . . . . . . . . . . . . . . . . . . . . . . . . Reprogrammed . | . . . . . . . . . . . . . . . . . . . . . . . . . . . . . . . . . Reused . | . . . . . . . . . . . . . . . . . . . . . . . . . . . . . . . . . Traps Extracted . | . . . . . . . . . . . . . . . . . . . . . . . . . . . . . . . . . Installed . | . . . . . . . . . . . . . . . . . . . . . . . . . . . . . . . . . Triggered 16 | . . . . . . 3 . . 1 1 . . . 3 . . . 6 . . . . . 2 . . . . . . . . Machines | -11 -10 -10 -8 -7 -7 -7 -7 -6 -6 -6 -6 -6 -6 -5 -5 -5 -5 -5 -4 -4 -4 -4 -4 -3 -3 -3 -2 -2 -2 -1 -1 -1 ---------- Run | Yrd Mat Sub Mat Fac Low Low Dat Pro Fac Low Low Zio Dee Pro Fac Upp Upp War Pro Fac Upp Upp Zhi Pro Res Tes Res Qua Sec Acc Com Ac0 Machines Disabled 65 | . 6 1 3 9 . 1 . . 1 . . 3 3 . . . . . 1 1 . . . . 1 10 3 13 7 . 2 . Max in Single Turn 3 | . 3 1 1 3 . 1 . . 1 . . 1 1 . . . . . 1 1 . . . . 1 3 1 2 1 . 1 . Garrison Access 3 | . . . 1 . . . . . . . . . . . . . . . . . . . . . 1 . . . 1 . . . Machines Repaired . | . . . . . . . . . . . . . . . . . . . . . . . . . . . . . . . . . Machines Dismantled . | . . . . . . . . . . . . . . . . . . . . . . . . . . . . . . . . . Machines Sabotaged . | . . . . . . . . . . . . . . . . . . . . . . . . . . . . . . . . . Overloaded Fab Kills . | . . . . . . . . . . . . . . . . . . . . . . . . . . . . . . . . . Hacking | -11 -10 -10 -8 -7 -7 -7 -7 -6 -6 -6 -6 -6 -6 -5 -5 -5 -5 -5 -4 -4 -4 -4 -4 -3 -3 -3 -2 -2 -2 -1 -1 -1 --------- Run | Yrd Mat Sub Mat Fac Low Low Dat Pro Fac Low Low Zio Dee Pro Fac Upp Upp War Pro Fac Upp Upp Zhi Pro Res Tes Res Qua Sec Acc Com Ac0 Machines Accessed 67 | . 3 1 11 3 . . 4 . 6 . . . . . 1 1 . 1 . . 1 2 4 . 4 5 . 4 3 3 10 . Terminals 37 | . 3 . 10 . . . . . 3 . . . . . 1 . . . . . . . . . 1 2 . 3 2 3 9 . Fabricators 2 | . . . . 1 . . . . . . . . . . . . . . . . . . . . . 1 . . . . . . Repair Stations 8 | . . . 1 2 . . . . 2 . . . . . . . . . . . . . . . 1 1 . . . . 1 . Recycling Units . | . . . . . . . . . . . . . . . . . . . . . . . . . . . . . . . . . Scanalyzers 2 | . . . . . . . . . . . . . . . . . . . . . . . . . . 1 . 1 . . . . Garrison Access 4 | . . . . . . . . . 1 . . . . . . . . . . . . . . . 2 . . . 1 . . . Total Hacks 204 | . 12 9 39 7 . . 31 . 25 . . . . . 1 1 . 1 . . 1 8 17 . 6 10 . 7 4 6 19 . Successful 142 | . 6 9 24 6 . . 31 . 16 . . . . . . 1 . 1 . . 1 8 17 . 1 2 . 3 3 2 11 . Failed 62 | . 6 . 15 1 . . . . 9 . . . . . 1 . . . . . . . . . 5 8 . 4 1 4 8 . Catastrophic 18 | . . . 6 . . . . . 3 . . . . . . . . . . . . . . . 1 2 . 4 . 2 . . Database Lockouts . | . . . . . . . . . . . . . . . . . . . . . . . . . . . . . . . . . Manual 73 | . 6 . 35 4 . 1 . . 3 . . 1 . . . . . 1 . . . . . . . 6 . 4 . 1 11 . Terminals 86 | . 12 . 33 . . . . . 5 . . . . . 1 . . . . . . . . . 1 2 . 5 3 6 18 . Fabricators 8 | . . . . 4 . . . . . . . . . . . . . . . . . . . . . 4 . . . . . . Repair Stations 33 | . . . 6 3 . . . . 19 . . . . . . . . . . . . . . . 1 3 . . . . 1 . Recycling Units . | . . . . . . . . . . . . . . . . . . . . . . . . . . . . . . . . . Scanalyzers 3 | . . . . . . . . . . . . . . . . . . . . . . . . . . 1 . 2 . . . . Garrison Access 6 | . . . . . . . . . 1 . . . . . . . . . . . . . . . 4 . . . 1 . . . Terminal Hacks 92 | . 3 9 9 . . . 31 . 1 . . . . . . 1 . 1 . . 1 8 17 . . . . . 2 2 7 . Record 31 | . . 8 . . . . 11 . . . . . . . . . . . . . . 7 5 . . . . . . . . . Part Schematic 16 | . . . 1 . . . 11 . . . . . . . . . . . . . . . 4 . . . . . . . . . Robot Schematic 6 | . . . . . . . 6 . . . . . . . . . . . . . . . . . . . . . . . . . Robot Analysis 5 | . 1 . . . . . . . . . . . . . . . . . . . . . 4 . . . . . . . . . Prototype ID Bank 7 | . . . . . . . 3 . . . . . . . . . . . . . . . 4 . . . . . . . . . Open Door 7 | . . . . . . . . . . . . . . . . 1 . 1 . . 1 1 . . . . . . 2 . 1 . Branch Access Points 3 | . 1 . 1 . . . . . 1 . . . . . . . . . . . . . . . . . . . . . . . Emergency Access Points 1 | . . . . . . . . . . . . . . . . . . . . . . . . . . . . . . . 1 . Terminal Index 2 | . . . . . . . . . . . . . . . . . . . . . . . . . . . . . . 1 1 . Alert Level 2 | . . . 2 . . . . . . . . . . . . . . . . . . . . . . . . . . . . . Unreport Threat 6 | . . . 3 . . . . . . . . . . . . . . . . . . . . . . . . . . 1 2 . Zone Layout 3 | . 1 . 2 . . . . . . . . . . . . . . . . . . . . . . . . . . . . . Derelict Proto ID Bank 1 | . . 1 . . . . . . . . . . . . . . . . . . . . . . . . . . . . . . Disengage Seal 2 | . . . . . . . . . . . . . . . . . . . . . . . . . . . . . . . 2 . Fabricator Hacks . | . . . . . . . . . . . . . . . . . . . . . . . . . . . . . . . . . Repair Station Hacks 23 | . . . 6 2 . . . . 15 . . . . . . . . . . . . . . . . . . . . . . . Scan Component 12 | . . . 3 1 . . . . 8 . . . . . . . . . . . . . . . . . . . . . . . Repair 11 | . . . 3 1 . . . . 7 . . . . . . . . . . . . . . . . . . . . . . . Recycling Unit Hacks . | . . . . . . . . . . . . . . . . . . . . . . . . . . . . . . . . . Scanalyzer 1 | . . . . . . . . . . . . . . . . . . . . . . . . . . . . 1 . . . . Insert Component 1 | . . . . . . . . . . . . . . . . . . . . . . . . . . . . 1 . . . . Garrison Access Hacks 2 | . . . . . . . . . . . . . . . . . . . . . . . . . 1 . . . 1 . . . Seal Access 2 | . . . . . . . . . . . . . . . . . . . . . . . . . 1 . . . 1 . . . Unauthorized Hacks 24 | . 3 . 9 4 . . . . . . . . . . . . . . . . . . . . . 2 . 2 . . 4 . Terminals 18 | . 3 . 9 . . . . . . . . . . . . . . . . . . . . . . . . 2 . . 4 . Botnet 12 | . 3 . 3 . . . . . . . . . . . . . . . . . . . . . . . . 2 . . 4 . Disrupt 1 | . . . 1 . . . . . . . . . . . . . . . . . . . . . . . . . . . . . Skim 5 | . . . 5 . . . . . . . . . . . . . . . . . . . . . . . . . . . . . Fabricators 5 | . . . . 4 . . . . . . . . . . . . . . . . . . . . . 1 . . . . . . Report 1 | . . . . 1 . . . . . . . . . . . . . . . . . . . . . . . . . . . . Liberate 2 | . . . . 1 . . . . . . . . . . . . . . . . . . . . . 1 . . . . . . Fabnet 1 | . . . . 1 . . . . . . . . . . . . . . . . . . . . . . . . . . . . Haulers 1 | . . . . 1 . . . . . . . . . . . . . . . . . . . . . . . . . . . . Repair Stations 1 | . . . . . . . . . . . . . . . . . . . . . . . . . . 1 . . . . . . Patch 1 | . . . . . . . . . . . . . . . . . . . . . . . . . . 1 . . . . . . Recycling Units . | . . . . . . . . . . . . . . . . . . . . . . . . . . . . . . . . . Scanalyzers . | . . . . . . . . . . . . . . . . . . . . . . . . . . . . . . . . . Garrison Access . | . . . . . . . . . . . . . . . . . . . . . . . . . . . . . . . . . Data Cores Recovered 1 | . 1 . . . . . . . . . . . . . . . . . . . . . . . . . . . . . . . Used 1 | . 1 . . . . . . . . . . . . . . . . . . . . . . . . . . . . . . . Hacking Detections 51 | . 3 . 11 3 . . . . 6 . . . . . 1 . . . . . . . . . 4 5 . 4 2 3 9 . Full Trace Events 2 | . . . . . . . . . . . . . . . . . . . . . . . . . . 1 . 1 . . . . Feedback Events . | . . . . . . . . . . . . . . . . . . . . . . . . . . . . . . . . . Feedback Blocked . | . . . . . . . . . . . . . . . . . . . . . . . . . . . . . . . . . Robot Schematics Acquired 10 | . . . . . . . 6 . . . . 3 . . . . . . . . . . . . . . . . 1 . . . Robots Built . | . . . . . . . . . . . . . . . . . . . . . . . . . . . . . . . . . Authchips . | . . . . . . . . . . . . . . . . . . . . . . . . . . . . . . . . . Time . | . . . . . . . . . . . . . . . . . . . . . . . . . . . . . . . . . Total Robot Build Rating . | . . . . . . . . . . . . . . . . . . . . . . . . . . . . . . . . . Part Schematics Acquired 30 | . . . 1 . . . 11 . . . . 12 . . . . . . . . . . 4 . . . . . 2 . . . Parts Built . | . . . . . . . . . . . . . . . . . . . . . . . . . . . . . . . . . Authchips . | . . . . . . . . . . . . . . . . . . . . . . . . . . . . . . . . . Time . | . . . . . . . . . . . . . . . . . . . . . . . . . . . . . . . . . Total Part Build Rating . | . . . . . . . . . . . . . . . . . . . . . . . . . . . . . . . . . Parts Repaired 11 | . . . 3 1 . . . . 7 . . . . . . . . . . . . . . . . . . . . . . . Time 468 | . . . 120 60 . . . . 288 . . . . . . . . . . . . . . . . . . . . . . . Parts Recycled . | . . . . . . . . . . . . . . . . . . . . . . . . . . . . . . . . . Recycled Matter . | . . . . . . . . . . . . . . . . . . . . . . . . . . . . . . . . . Retrieved Matter . | . . . . . . . . . . . . . . . . . . . . . . . . . . . . . . . . . Retrieved Components . | . . . . . . . . . . . . . . . . . . . . . . . . . . . . . . . . . Parts Scanalyzed . | . . . . . . . . . . . . . . . . . . . . . . . . . . . . . . . . . Part Schematics Acquired . | . . . . . . . . . . . . . . . . . . . . . . . . . . . . . . . . . Parts Damaged . | . . . . . . . . . . . . . . . . . . . . . . . . . . . . . . . . . Bothacking | -11 -10 -10 -8 -7 -7 -7 -7 -6 -6 -6 -6 -6 -6 -5 -5 -5 -5 -5 -4 -4 -4 -4 -4 -3 -3 -3 -2 -2 -2 -1 -1 -1 ------------ Run | Yrd Mat Sub Mat Fac Low Low Dat Pro Fac Low Low Zio Dee Pro Fac Upp Upp War Pro Fac Upp Upp Zhi Pro Res Tes Res Qua Sec Acc Com Ac0 Used RIF Installer . | . . . . . . . . . . . . . . . . . . . . . . . . . . . . . . . . . Robots Hacked 3 | . . . . . . . 1 . . . . 1 . . . 1 . . . . . . . . . . . . . . . . Non-combat . | . . . . . . . . . . . . . . . . . . . . . . . . . . . . . . . . . Combat 3 | . . . . . . . 1 . . . . 1 . . . 1 . . . . . . . . . . . . . . . . Robot Hacks Applied 2 | . . . . . . . 1 . . . . 1 . . . . . . . . . . . . . . . . . . . . parse_system 2 | . . . . . . . 1 . . . . 1 . . . . . . . . . . . . . . . . . . . . Relay Couplers Released 9 | . . . 1 . . . . . . . . . . . . . . . . . . . . . 4 4 . . . . . . Machine Destruction 1 | . . . 1 . . . . . . . . . . . . . . . . . . . . . . . . . . . . . Programmers 8 | . . . . . . . . . . . . . . . . . . . . . . . . . 4 4 . . . . . . Fabnet Peak Effective % 3 | . . . . . . . . 3 3 3 3 3 3 1 1 1 1 1 . . . . . . . . . . . . . . Autooverrided 1 | . . . . . . . . . . . . . . . . 1 . . . . . . . . . . . . . . . . Robots Rewired 19 | . . . . . . . . . . . . . . . . 2 . 5 12 . . . . . . . . . . . . . Allies Hacked 1 | . . . . . . . . . . . . . . . . . . . . 1 . . . . . . . . . . . . Hacks Repelled . | . . . . . . . . . . . . . . . . . . . . . . . . . . . . . . . . . Allies | -11 -10 -10 -8 -7 -7 -7 -7 -6 -6 -6 -6 -6 -6 -5 -5 -5 -5 -5 -4 -4 -4 -4 -4 -3 -3 -3 -2 -2 -2 -1 -1 -1 -------- Run | Yrd Mat Sub Mat Fac Low Low Dat Pro Fac Low Low Zio Dee Pro Fac Upp Upp War Pro Fac Upp Upp Zhi Pro Res Tes Res Qua Sec Acc Com Ac0 Total Allies 34 | . . . . 3 . . . . . . . 2 . . . 3 . 5 12 . . . . . . 2 . . . . 7 . Largest Group 11 | . . . . 3 . . . . . . . 2 2 . . 2 2 5 11 11 . . . . . 2 . . . . 7 . Highest-Rated Group 469 | . . . . 48 . . . . . . . 192 192 . . 59 59 310 469 469 . . . . . 128 . . . . 95 . Highest-Rated Ally 96 | . . . . 16 . . . . . . . 96 96 . . 30 30 68 68 68 . . . . . 64 . . . . 15 . Total Orders 10 | . . . . . . . . . . . . . . . 1 . . 2 . 2 . . . . . . 5 . . . . . FOLLOW 1 | . . . . . . . . . . . . . . . . . . 1 . . . . . . . . . . . . . . AID 1 | . . . . . . . . . . . . . . . . . . 1 . . . . . . . . . . . . . . EXPLORE 5 | . . . . . . . . . . . . . . . . . . . . . . . . . . . 5 . . . . . RETURN 3 | . . . . . . . . . . . . . . . 1 . . . . 2 . . . . . . . . . . . . Ally Attacks 258 | . . . . 19 . . . . . . . . 43 . . 3 7 . 61 94 . . . . . 16 . . . . 15 . Total Damage 8470 | . . . . 211 . . . . . . . . 1109 . . 56 103 . 3218 3146 . . . . . 594 . . . . 33 . Kills 49 | . . . . 4 . . . . . . . . 5 . . 1 1 . 19 17 . . . . . 2 . . . . . . Allies Corrupted 1 | . . . . . . . . . . . . . . . . . . . . 1 . . . . . . . . . . . . Allies Melted 1 | . . . . . . . . . . . . . . . . . . . . . . . . . . . 1 . . . . . Intel | -11 -10 -10 -8 -7 -7 -7 -7 -6 -6 -6 -6 -6 -6 -5 -5 -5 -5 -5 -4 -4 -4 -4 -4 -3 -3 -3 -2 -2 -2 -1 -1 -1 ------- Run | Yrd Mat Sub Mat Fac Low Low Dat Pro Fac Low Low Zio Dee Pro Fac Upp Upp War Pro Fac Upp Upp Zhi Pro Res Tes Res Qua Sec Acc Com Ac0 Robot Analysis Total 5 | . 1 . . . . . . . . . . . . . . . . . . . . . 4 . . . . . . . . . Derelict Logs Recovered 12 | . . 1 . . . 1 . 1 . . 1 1 . . . 1 2 . 2 . . 2 . . . . . . . . . . Drone Launches 12 | . . . . . . . . . . . . . . . 1 . . . . 2 . . . . . . 9 . . . . . Drone Recoveries 11 | . . . . . . . . . . . . . . . 1 . . . . 2 . . . . . . 8 . . . . . Exploration | -11 -10 -10 -8 -7 -7 -7 -7 -6 -6 -6 -6 -6 -6 -5 -5 -5 -5 -5 -4 -4 -4 -4 -4 -3 -3 -3 -2 -2 -2 -1 -1 -1 ------------- Run | Yrd Mat Sub Mat Fac Low Low Dat Pro Fac Low Low Zio Dee Pro Fac Upp Upp War Pro Fac Upp Upp Zhi Pro Res Tes Res Qua Sec Acc Com Ac0 Turns Passed 42421 | . 1046 2641 2155 1756 765 633 246 569 1561 537 706 3584 3586 886 645 1604 1364 1503 1571 523 1177 2407 655 1446 861 1612 817 1331 1026 818 2241 149 Spaces Moved 17275 | 1 365 1040 721 554 308 260 101 216 411 219 266 1490 1221 235 295 675 380 765 641 176 616 1224 174 494 313 743 289 667 659 529 1120 107 Core 4 | . . . 4 . . . . . . . . . . . . . . . . . . . . . . . . . . . . . Treads 8800 | . . 1018 412 369 259 260 101 216 411 219 266 1490 1048 . . . . . . . . . . . . . 76 667 482 385 1069 52 Legs 7330 | 1 113 . 1 98 . . . . . . . . 173 235 295 675 380 765 641 176 616 1224 174 494 313 743 213 . . . . . Wheels 714 | . 252 22 304 87 49 . . . . . . . . . . . . . . . . . . . . . . . . . . . Hover . | . . . . . . . . . . . . . . . . . . . . . . . . . . . . . . . . . Flight . | . . . . . . . . . . . . . . . . . . . . . . . . . . . . . . . . . Fastest Speed 108 | 120 120 140 110 160 160 238 241 241 238 238 238 239 185 185 185 185 185 185 185 185 185 185 180 180 116 108 118 160 151 153 153 153 Average Speed 194 | 120 133 237 203 222 225 238 241 241 239 238 238 239 235 185 185 185 185 185 185 185 185 185 182 180 174 122 163 162 156 153 153 153 Slowest Speed 1600 | 120 140 240 1600 330 243 241 241 241 241 238 239 239 470 185 185 185 185 185 185 226 185 185 186 180 176 176 560 243 162 153 153 153 Overloaded Moves . | . . . . . . . . . . . . . . . . . . . . . . . . . . . . . . . . . Propulsion Burnouts . | . . . . . . . . . . . . . . . . . . . . . . . . . . . . . . . . . Robots Hopped . | . . . . . . . . . . . . . . . . . . . . . . . . . . . . . . . . . Cave-ins Triggered . | . . . . . . . . . . . . . . . . . . . . . . . . . . . . . . . . . Teleports 3 | . . . . . . . . . . . . . . . . . . . . . . . . . . . . . 2 . 1 . Spacefolds 4 | . . . . . . . . . . . . . . . . . . . . . . . . . . . . . 2 1 . 1 Microwarps 44 | . . . . . . . . . . . . . . . . . . . . . . . . . . . . . 21 12 3 8 Exploration Rate (%) 49 | 2 78 67 62 20 57 42 74 41 13 46 48 88 86 41 10 66 46 83 67 5 69 95 60 60 11 90 25 68 47 19 47 7 Regions Visited 32 Branch Regions 23 Pre-discovered Areas 10 | . . 1 1 . . . 1 1 . . . 1 . . . . . . 1 . . 1 3 . . . . . . . . . Known Exits Taken 10 | . . . . 1 . . . 1 1 . . . . 1 1 . . . 1 1 . . . 1 1 . . . 1 . . . Unknown Exits Taken 22 | 1 1 1 1 . 1 1 1 . . 1 1 1 1 . . 1 1 1 . . 1 1 1 . . 1 1 1 . 1 1 . Scrap Searched 32 | . . 5 . . 1 3 . . . 2 2 3 . 1 . 2 2 . 5 . 2 3 . 1 . . . . . . . . Spaces Dug 144 | . . 2 9 11 . . . . 1 . . . 1 12 4 2 2 4 . . 2 17 . 10 14 4 5 1 2 6 33 2 Terrain Destroyed 864 | . 13 8 24 88 3 1 . . 26 3 9 . 61 21 12 48 11 4 6 14 6 20 . 26 33 159 8 51 6 9 53 141 Melee . | . . . . . . . . . . . . . . . . . . . . . . . . . . . . . . . . . Projectile 288 | . . 3 2 1 3 1 . . 1 3 9 . 22 21 12 19 11 4 6 14 6 20 . 26 33 23 8 22 5 5 3 5 AOE 551 | . 13 5 22 87 . . . . 25 . . . 39 . . 29 . . . . . . . . . 136 . 29 . . 35 131 Terrain Rammed . | . . . . . . . . . . . . . . . . . . . . . . . . . . . . . . . . . Walls Destroyed . | . . . . . . . . . . . . . . . . . . . . . . . . . . . . . . . . . Machines Disabled . | . . . . . . . . . . . . . . . . . . . . . . . . . . . . . . . . . Actions | -11 -10 -10 -8 -7 -7 -7 -7 -6 -6 -6 -6 -6 -6 -5 -5 -5 -5 -5 -4 -4 -4 -4 -4 -3 -3 -3 -2 -2 -2 -1 -1 -1 --------- Run | Yrd Mat Sub Mat Fac Low Low Dat Pro Fac Low Low Zio Dee Pro Fac Upp Upp War Pro Fac Upp Upp Zhi Pro Res Tes Res Qua Sec Acc Com Ac0 Total 24157 | . 844 1128 1156 853 343 276 103 239 869 224 301 1508 1754 644 358 964 1023 849 981 329 629 1347 517 974 503 1286 602 821 678 558 1396 100 Wait 4555 | . 415 13 189 80 4 . . 11 339 . 4 3 330 378 21 186 611 1 202 109 . 101 311 426 97 322 217 32 7 74 70 2 Move 16863 | . 364 1039 720 553 307 259 100 215 410 218 265 1489 1220 234 294 674 379 764 640 175 615 1223 173 493 312 742 288 666 504 397 1071 60 Hop . | . . . . . . . . . . . . . . . . . . . . . . . . . . . . . . . . . Pick Up 199 | . 5 10 30 16 3 3 . . 9 . 3 3 21 2 5 7 . 7 1 1 1 . 4 2 10 12 8 11 14 1 10 . Fast Attach 220 | . 3 . 30 23 3 3 . . 17 . 1 . 9 . 3 6 5 5 2 5 . 4 8 1 . 24 17 13 21 2 12 3 Attach 150 | . . 7 12 8 1 1 . . 6 . 6 2 15 . 2 . . 1 . 1 . . 2 2 3 10 5 5 18 9 27 7 Detach 70 | . . 1 3 2 . 1 . . 2 . . 2 2 . 1 1 . 1 . . . . . . 2 6 2 4 7 7 21 5 Swap 102 | . 8 5 8 17 1 . 2 . 4 . . 4 10 . . 2 . . 1 6 1 . . . 6 3 . 2 4 4 14 . Drop 414 | . 5 3 31 30 4 7 . . 17 . 2 . 29 7 11 18 16 12 5 10 . 8 19 9 8 51 34 28 26 7 17 . Fire 1329 | . 44 50 133 124 20 2 . 13 65 6 20 4 118 23 21 38 12 8 24 22 12 11 . 41 63 110 30 58 42 51 141 23 Melee 37 | . . . . . . . 1 . . . . 1 . . . . . . . . . . . . . . . 2 18 4 11 . Ram . | . . . . . . . . . . . . . . . . . . . . . . . . . . . . . . . . . Kick 6 | . . . . . . . . . . . . . . . . . . . . . . . . . 2 3 1 . . . . . Crush 5 | . . . . . . . . . . . . . . . . . . . . . . . . . . . . . 1 2 2 . Escape Stasis 3 | . . . . . . . . . . . . . . . . . . . . . . . . . . 3 . . . . . . Rewire 204 | . . . . . . . . . . . . . . . . 32 . 50 106 . . . . . . . . . 16 . . . Trap . | . . . . . . . . . . . . . . . . . . . . . . . . . . . . . . . . . Miscellaneous . | . . . . . . . . . . . . . . . . . . . . . . . . . . . . . . . . . Route ------- -11/Scrapyard -10/Materials (discovered 4 exits: [*Mat x2] / *Min / *Sub) -10/Subcaves (discovered 3 exits: *Mat x2 / [*Rec]) -8/Materials (discovered 2 exits: *Fac x2) -7/Factory (discovered 4 exits: Fac x2 / *Low x2) -7/Lower Caves -7/Lower Caves (discovered 2 exits: Fac / *Dat) -7/Data Miner -6/Proximity Caves -6/Factory (discovered 2 exits: *Low x2) -6/Lower Caves -6/Lower Caves -6/Zion (discovered 2 exits: [*Dee] / [*Pro]) -6/Deep Caves -5/Proximity Caves -5/Factory (discovered 2 exits: *Upp x2) -5/Upper Caves -5/Upper Caves -5/Warlord -4/Proximity Caves -4/Factory (discovered 3 exits: *Res / *Upp / Ext) -4/Upper Caves -4/Upper Caves (discovered 2 exits: *Res / *Zhi) -4/Zhirov -3/Proximity Caves -3/Research -3/Testing -2/Research (discovered 2 exits: *Acc / *Qua) -2/Quarantine -2/Section 7 -1/Access -1/Command -1/Access_0 History --------- Turn | Location | Event 1 | -11/Scrapyard | Discovered new exit (range 0) 1 | -11/Scrapyard | Entered Materials 281 | -10/Materials | Discovered new exit (range 16) 325 | -10/Materials | Identified exit to Mines 530 | -10/Materials | Build established: Mutant 546 | -10/Materials | Discovered new exit (range 6) 1040 | -10/Materials | Discovered new exit (range 4) 1047 | -10/Materials | Entered Subcaves 1376 | -10/Subcaves | Build established: Scavenger-Mutant 1649 | -10/Subcaves | Shifting Twisted Machinery released Shrapnel Trap 1652 | -10/Subcaves | Shifting Twisted Machinery released Sub. Beam Cannon 2353 | -10/Subcaves | Shifting Twisted Machinery released Flamer 2415 | -10/Subcaves | Learned location of Zion (-6) 2415 | -10/Subcaves | Met a Zionite searching for "candidates" 2454 | -10/Subcaves | Discovered new exit (range 8) 2627 | -10/Subcaves | Learned Materials terminal intel 2725 | -10/Subcaves | Build established: Mutant 2730 | -10/Subcaves | Discovered new exit (range 11) 2801 | -10/Subcaves | Core integrity fell below 50% 2807 | -10/Subcaves | Ambushed by Subdweller buried in earth 2816 | -10/Subcaves | Core integrity fell below 20% 2968 | -10/Subcaves | Visited 4L-MR0's lab 2993 | -10/Subcaves | Found Tower Shield 3470 | -10/Subcaves | A swath of the cavern ceiling suddenly collapsed 3496 | -10/Subcaves | Discovered new exit (range 10) 3615 | -10/Subcaves | Shifting Twisted Machinery released Sub. Beam Cannon 3688 | -10/Subcaves | Entered Materials 3688 | -8/Materials | Evolved 4 slots: Propulsion x2, Utility x2 3689 | -8/Materials | Loaded intel: 12 terminal locations 4299 | -8/Materials | Lost 3 parts (1p1n1u) 4488 | -8/Materials | Discovered new exit (range 16) 4668 | -8/Materials | Build established: Scavenger-Mutant 4947 | -8/Materials | Learned Factory stockpile data 5018 | -8/Materials | Learned 8 Factory zone layouts 5048 | -8/Materials | Garrison activated, responded to threat 5079 | -8/Materials | Learned location of 3 exits from Factory 5129 | -8/Materials | Learned location of 1 exit from Extension 5170 | -8/Materials | Learned location of Extension (-4) 5203 | -8/Materials | Learned Factory stockpile data 5228 | -8/Materials | Learned 4 Recycling zone layouts 5232 | -8/Materials | Discovered new exit (range 15) 5264 | -8/Materials | Learned Storage trap positions 5311 | -8/Materials | Learned location of 1 exit from Extension 5366 | -8/Materials | Learned location of 1 exit from Extension 5392 | -8/Materials | Lost 10 parts (1p6n1u2w) 5429 | -8/Materials | Learned Storage trap positions 5729 | -8/Materials | Repaired Hrd. Heavy Armor Plating 5774 | -8/Materials | Repaired Imp. Cooling System 5808 | -8/Materials | Repaired Sub. Shrapnel Launcher 5843 | -8/Materials | Entered Factory 5843 | -7/Factory | Evolved 2 slots: Power x1, Utility x1 5844 | -7/Factory | Identified exit to Factory 5844 | -7/Factory | Identified exit to Lower Caves 6114 | -7/Factory | Repaired Prc. Beam Rifle 6263 | -7/Factory | Discovered exit to Lower Caves (range 16) 6333 | -7/Factory | Build established: Mutant 6640 | -7/Factory | Build established: Scavenger-Mutant 6975 | -7/Factory | Build established: Mutant 7042 | -7/Factory | Destroyed 7 combat bots 7599 | -7/Factory | Entered Lower Caves 7601 | -7/Lower Caves | Attracted the attention of an 0b10 checkpoint 7701 | -7/Lower Caves | Found DCF Scrap (14 items) 7872 | -7/Lower Caves | Build established: Scavenger-Mutant 8348 | -7/Lower Caves | Discovered new exit (range 6) 8364 | -7/Lower Caves | Entered another Lower Caves area 8414 | -7/Lower Caves | Found DCF Scrap (12 items) 8880 | -7/Lower Caves | Discovered new exit (range 14) 8945 | -7/Lower Caves | Acquired the password to a Derelict Tinkerer's latest research 8962 | -7/Lower Caves | Found Prototype Special Weapon 8997 | -7/Lower Caves | Entered Data Miner 8997 | -7/Data Miner | Discovered new exit (range 6) 9043 | -7/Data Miner | Met Data Miner 9116 | -7/Data Miner | Learned location of Section 7 (-2) 9116 | -7/Data Miner | Acquired the access code to Warlord's prototype stash 9137 | -7/Data Miner | Received God Mode back door access code from Data Miner 9243 | -7/Data Miner | Entered Proximity Caves 9262 | -6/Proximity Caves | Build established: Mutant 9589 | -6/Proximity Caves | Attracted the attention of an 0b10 checkpoint 9625 | -6/Proximity Caves | Spotter reported a threat 9780 | -6/Proximity Caves | Discovered exit to Factory (range 14) 9812 | -6/Proximity Caves | Entered Factory 9812 | -6/Factory | Evolved 2 slots: Utility x2 9958 | -6/Factory | Repaired Hrd. Heavy Armor Plating 9998 | -6/Factory | Repaired Arm. Treads 10828 | -6/Factory | Build established: Scavenger-Mutant 10875 | -6/Factory | Repaired Arm. Treads 10920 | -6/Factory | Repaired Med. Treads 10966 | -6/Factory | Repaired Hrd. Heavy Armor Plating 11011 | -6/Factory | Repaired Med. Reactive Plating 11049 | -6/Factory | Repaired Broken Lgt. Treads 11189 | -6/Factory | Garrison activated, responded to threat 11234 | -6/Factory | Cargo convoy interrupted 11248 | -6/Factory | Identified exit to Lower Caves 11373 | -6/Factory | Entered Lower Caves 11413 | -6/Lower Caves | Encountered a Warlord checkpoint 11615 | -6/Lower Caves | Attracted the attention of an 0b10 checkpoint 11870 | -6/Lower Caves | Discovered new exit (range 13) 11910 | -6/Lower Caves | Entered another Lower Caves area 12256 | -6/Lower Caves | Learned Factory trap positions 12319 | -6/Lower Caves | Encountered a Warlord checkpoint 12339 | -6/Lower Caves | Spotted B-75 Beast 12386 | -6/Lower Caves | Destroyed B-75 Beast 12453 | -6/Lower Caves | Discovered new exit (range 12) 12567 | -6/Lower Caves | Attached Tower Shield, gained temporary slots: Power, Propulsion x2, Utility x2, Weapon x2 12616 | -6/Lower Caves | Entered Zion 12696 | -6/Zion | System corruption cleaned by Quarantine Array 12895 | -6/Zion | Discovered new exit (range 14) 13232 | -6/Zion | Learned location of 1 exit from Proximity Caves 13882 | -6/Zion | Given A8's code to call for help 13954 | -6/Zion | Met Imprinter 14238 | -6/Zion | Given the Hacking Drone Bay 14238 | -6/Zion | Found Prototype Device 14351 | -6/Zion | Found Prototype Device 15593 | -6/Zion | Discovered new exit (range 3) 15593 | -6/Zion | Saw the warning signs outside the Deep Caves entrance 15620 | -6/Zion | Enhanced Grunt warped into view, answering call for help 15626 | -6/Zion | Enhanced Grunt warped into view, answering call for help 16200 | -6/Zion | Entered Deep Caves 16200 | -6/Deep Caves | Accompanied by 2 allies 16518 | -6/Deep Caves | Attacked by Z-Imprinter 16531 | -6/Deep Caves | Allies destroyed Z-Imprinter 16582 | -6/Deep Caves | Found Prototype Protection 16582 | -6/Deep Caves | Identified Zio. Weapon Casing 16753 | -6/Deep Caves | Z-Facility disabled 16875 | -6/Deep Caves | Found Prototype Protection 17205 | -6/Deep Caves | Discovered new exit (range 13) 17273 | -6/Deep Caves | Build established: Scavenger-Tank 17451 | -6/Deep Caves | Spotted AG-16356 17485 | -6/Deep Caves | Identified Zio. Heavy Carapace 17513 | -6/Deep Caves | Destroyed AG-16356 17531 | -6/Deep Caves | Found GOLEM Unit 17627 | -6/Deep Caves | Spotted AG-39348 17659 | -6/Deep Caves | Core integrity fell below 50% 17667 | -6/Deep Caves | Destroyed AG-39348 17692 | -6/Deep Caves | Found GOLEM Unit 17758 | -6/Deep Caves | Triggered Deep Caves wall 17758 | -6/Deep Caves | Spotted AS-58376 17758 | -6/Deep Caves | Spotted AS-99740 17763 | -6/Deep Caves | Exposed GOLEM chamber 17770 | -6/Deep Caves | Build established: Scavenger-Mutant 17773 | -6/Deep Caves | Destroyed AS-99740 17806 | -6/Deep Caves | System corruption reached 10% 17813 | -6/Deep Caves | Destroyed AS-58376 17836 | -6/Deep Caves | Lost 8 parts (1p3n3u1w) 17858 | -6/Deep Caves | Destroyed 39 combat bots 17871 | -6/Deep Caves | Found GOLEM Unit 17990 | -6/Deep Caves | Found Prototype Processor 18264 | -6/Deep Caves | Build established: Scavenger-Golem 18297 | -6/Deep Caves | Found GOLEM Unit 18303 | -6/Deep Caves | Found GOLEM Unit 18309 | -6/Deep Caves | Found GOLEM Unit 19094 | -6/Deep Caves | Found Zio. Weapon Casing 19109 | -6/Deep Caves | Found Zio. Weapon Casing 19117 | -6/Deep Caves | Found Zio. Heavy Carapace 19704 | -6/Deep Caves | Build established: Golem 19786 | -6/Deep Caves | Entered Proximity Caves 19787 | -5/Proximity Caves | Identified exit to Factory 20032 | -5/Proximity Caves | Spotted B-75 Beast 20034 | -5/Proximity Caves | Core integrity fell below 20% 20086 | -5/Proximity Caves | Destroyed B-75 Beast 20672 | -5/Proximity Caves | Entered Factory 20672 | -5/Factory | Evolved 2 slots: Utility x2 20673 | -5/Factory | Loaded intel: 79 trap records 21101 | -5/Factory | Identified Hacking Drone Bay 21107 | -5/Factory | Identified exit to Upper Caves 21317 | -5/Factory | Entered Upper Caves 21614 | -5/Upper Caves | Found Imp. Powered Armor 21664 | -5/Upper Caves | Learned Factory non-interactive machine intel 21962 | -5/Upper Caves | Identified Modified TNC 21974 | -5/Upper Caves | Identified Phasing AFG 22311 | -5/Upper Caves | Attracted the attention of an 0b10 outpost 22408 | -5/Upper Caves | Destroyed 7 combat bots 22769 | -5/Upper Caves | Discovered new exit (range 13) 22921 | -5/Upper Caves | Entered another Upper Caves area 22921 | -5/Upper Caves | Accompanied by 2 allies 22949 | -5/Upper Caves | Learned location of 1 exit from Proximity Caves 23076 | -5/Upper Caves | Learned location of 1 exit from Factory 23249 | -5/Upper Caves | Encountered a Warlord checkpoint 23270 | -5/Upper Caves | Discovered new exit (range 13) 24285 | -5/Upper Caves | Entered Warlord 24361 | -5/Warlord | Discovered new exit (range 9) 24926 | -5/Warlord | Warlord's base attacked by MAIN.C 25016 | -5/Warlord | Met Warlord 25047 | -5/Warlord | Opened Warlord's prototype stash 25055 | -5/Warlord | Found Prototype Reactor 25055 | -5/Warlord | Identified Vortex Chain Reactor 25063 | -5/Warlord | Found Prototype Device 25063 | -5/Warlord | Identified Exp. Cloaking Device 25074 | -5/Warlord | Found Prototype Device 25074 | -5/Warlord | Identified Exp. Focal Shield 25078 | -5/Warlord | Found Prototype Processor 25231 | -5/Warlord | Met EX-DEC 25241 | -5/Warlord | Found Prototype Energy Cannon 25276 | -5/Warlord | Warlord forces counterattacked 25601 | -5/Warlord | Warlord base infiltrated, sounded retreat 25660 | -5/Warlord | Build established: Commander-Golem 25733 | -5/Warlord | Found Prototype Processor 25788 | -5/Warlord | Entered Proximity Caves 25788 | -4/Proximity Caves | Accompanied by 5 allies 25789 | -4/Proximity Caves | Identified exit to Factory 25797 | -4/Proximity Caves | Lost 3 allies 26227 | -4/Proximity Caves | Received a Behemoth hack from an annoying Tinkerer 26557 | -4/Proximity Caves | Build established: Golem 26561 | -4/Proximity Caves | Attracted the attention of an 0b10 outpost 26727 | -4/Proximity Caves | Snuck into a huge 0b10 base via the rear entrance 26759 | -4/Proximity Caves | Derelicts attacked a huge 0b10 base 26939 | -4/Proximity Caves | Spotted B-86 Titan 26947 | -4/Proximity Caves | Allies destroyed B-86 Titan 26987 | -4/Proximity Caves | Learned location of Armory (-4) 27151 | -4/Proximity Caves | Build established: Commander-Golem 27359 | -4/Proximity Caves | Entered Factory 27359 | -4/Factory | Accompanied by 11 allies 27359 | -4/Factory | Evolved 2 slots: Utility x2 27360 | -4/Factory | Identified exit to Extension 27361 | -4/Factory | Loaded intel: 248 non-interactive machine locations 27629 | -4/Factory | Spotted B-86 Titan 27639 | -4/Factory | Allies destroyed B-86 Titan 27660 | -4/Factory | Lost 5 allies 27709 | -4/Factory | Lost 3 allies 27781 | -4/Factory | Discovered new exit (range 16) 27853 | -4/Factory | Identified exit to Research 27858 | -4/Factory | Discovered new exit (range 14) 27880 | -4/Factory | Identified exit to Upper Caves 27882 | -4/Factory | Entered Upper Caves 28188 | -4/Upper Caves | Build established: Golem 28337 | -4/Upper Caves | Discovered new exit (range 3) 29059 | -4/Upper Caves | Entered another Upper Caves area 29332 | -4/Upper Caves | Discovered exit to Research (range 8) 29367 | -4/Upper Caves | Encountered a Warlord checkpoint 29589 | -4/Upper Caves | Found DCF Scrap (12 items) 29859 | -4/Upper Caves | Learned Armory emergency access door positions 29859 | -4/Upper Caves | Learned Factory stockpile data 29859 | -4/Upper Caves | Learned Extension stockpile data 29859 | -4/Upper Caves | Learned Factory security intel 29859 | -4/Upper Caves | Learned Armory security intel 29969 | -4/Upper Caves | Learned location of Quarantine (-2) 30261 | -4/Upper Caves | Discovered new exit (range 9) 31091 | -4/Upper Caves | Learned Research terminal intel 31466 | -4/Upper Caves | Entered Zhirov 31466 | -4/Zhirov | Discovered new exit (range 4) 31749 | -4/Zhirov | Met Zhirov 31783 | -4/Zhirov | Learned location of Testing (-3) 31783 | -4/Zhirov | Learned location of Command (-1) 31801 | -4/Zhirov | Zhirov requested help retrieving the SGEMP Prototype 31832 | -4/Zhirov | Found Alien Artifact 31832 | -4/Zhirov | Identified Integrated Dissipator 31832 | -4/Zhirov | Installed Integrated Dissipator, increased core heat dissipation (+20) 31914 | -4/Zhirov | Found Alien Artifact 32121 | -4/Zhirov | Entered Proximity Caves 32836 | -3/Proximity Caves | Discovered exit to Research (range 14) 33567 | -3/Proximity Caves | Entered Research 33567 | -3/Research | Evolved 2 slots: Propulsion x2 33568 | -3/Research | Identified exit to Testing 33569 | -3/Research | Loaded intel: 23 terminal locations 33662 | -3/Research | Spotted B-86 Titan 33792 | -3/Research | Destroyed B-86 Titan 34028 | -3/Research | Destroyed 7 combat bots 34237 | -3/Research | Garrison activated, responded to threat 34272 | -3/Research | Found Prototype Launcher 34313 | -3/Research | Identified Adv. Micro-nuke Launcher 34319 | -3/Research | Found Adv. Micro-nuke Launcher 34428 | -3/Research | Entered Testing 34471 | -3/Testing | Identified Exp. Core Analyzer 34474 | -3/Testing | Found Prototype Energy Cannon 34601 | -3/Testing | Destroyed 7 combat bots 34608 | -3/Testing | Spotted PG-967BHF4BBC 34882 | -3/Testing | Spotted Striker 34903 | -3/Testing | Spotted Striker 34917 | -3/Testing | Found Prototype Energy Gun 34917 | -3/Testing | Identified Warp Gun 35105 | -3/Testing | Found Prototype Energy Cannon 35105 | -3/Testing | Identified Disintegrator 35107 | -3/Testing | Identified Exp. Target Analyzer 35139 | -3/Testing | Found Prototype Processor 35139 | -3/Testing | Identified Spectral Analyzer 35251 | -3/Testing | Identified Vortex Cannon 35261 | -3/Testing | Lost 6 parts (1p2n3u) 35589 | -3/Testing | Found Prototype Ballistic Gun 35710 | -3/Testing | First assault squad dispatched 35849 | -3/Testing | Discovered new exit (range 13) 36020 | -3/Testing | Destroyed 8 combat bots 36040 | -3/Testing | Entered Research 36040 | -2/Research | Warlord forces began assault on 0b10 36040 | -2/Research | Evolved 2 slots: Utility x2 36150 | -2/Research | Research machine network offline 36173 | -2/Research | Met up with Warlord 36334 | -2/Research | Spotted Striker 36336 | -2/Research | Spotted Striker 36339 | -2/Research | Discovered new exit (range 15) 36355 | -2/Research | Destroyed Striker 36364 | -2/Research | Destroyed Striker 36374 | -2/Research | Found Prototype Launcher 36374 | -2/Research | Identified Tactical Quantum Warhead 36400 | -2/Research | Found Quantum Capacitor 36402 | -2/Research | Lost 3 allies 36405 | -2/Research | Spotted Executioner 36428 | -2/Research | Identified exit to Access 36503 | -2/Research | Lost 8 allies 36529 | -2/Research | Spotted Striker 36532 | -2/Research | Spotted Striker 36568 | -2/Research | Borebot progress halted 36570 | -2/Research | Lost 3 allies 36574 | -2/Research | Discovered new exit (range 6) 36625 | -2/Research | Borebot progress halted 36716 | -2/Research | Spotted Executioner 36736 | -2/Research | Destroyed Executioner 36857 | -2/Research | Entered Quarantine 37013 | -2/Quarantine | Cryocooling Duct disabled 37028 | -2/Quarantine | Ambient heat levels rising (+20) 37028 | -2/Quarantine | Non-combat units ordered to evacuate 37048 | -2/Quarantine | Found Alien Artifact 37111 | -2/Quarantine | Build established: Infiltrator-Mutant 37265 | -2/Quarantine | Identified Phase Redirector 37293 | -2/Quarantine | Found Alien Artifact 37353 | -2/Quarantine | Found Alien Artifact 37443 | -2/Quarantine | Found Alien Impact Weapon 37690 | -2/Quarantine | Found Alien Artifact 37690 | -2/Quarantine | Identified Core Reset Matrix 37690 | -2/Quarantine | Identified Subatomic Replicator 37690 | -2/Quarantine | Identified Terrabomb 37690 | -2/Quarantine | Identified Core Stripper 37690 | -2/Quarantine | Identified Transdimensional Reconstructor 37690 | -2/Quarantine | Used Core Reset Matrix 37694 | -2/Quarantine | Detected hypermatrix surge 37694 | -2/Quarantine | Sensed 12 artifacts in vicinity 37812 | -2/Quarantine | Found Hpw. Transdimensional Reconstructor 37822 | -2/Quarantine | Found Dimensional Node Initializer 37906 | -2/Quarantine | First assault squad dispatched 37988 | -2/Quarantine | Spotted Fortress 37994 | -2/Quarantine | Build established: Alien-Mutant 38003 | -2/Quarantine | Destroyed Fortress 38012 | -2/Quarantine | Found Prototype Reactor 38012 | -2/Quarantine | Identified Vortex Chain Reactor 38045 | -2/Quarantine | Found Prototype Device 38045 | -2/Quarantine | Identified Exp. Force Field 38049 | -2/Quarantine | Found Prototype Device 38049 | -2/Quarantine | Identified Thermal Barrier 38058 | -2/Quarantine | Found Prototype Device 38058 | -2/Quarantine | Identified Exp. EM Disruption Field 38180 | -2/Quarantine | Discovered new exit (range 6) 38188 | -2/Quarantine | Entered Section 7 38189 | -2/Section 7 | Sensed 21 artifacts in vicinity 38306 | -2/Section 7 | Found Integrated Mediator 38306 | -2/Section 7 | Installed Integrated Mediator, increased core attachment efficiency 38388 | -2/Section 7 | Found Spacefold Activator 38399 | -2/Section 7 | Discovered exit to Access (range 15) 38429 | -2/Section 7 | Initialized slip node 38481 | -2/Section 7 | Spotted S7 Guard 38510 | -2/Section 7 | Destroyed S7 Guard 38516 | -2/Section 7 | Found Prototype Protection 38516 | -2/Section 7 | Identified Hvy. Regenerative Plating 38527 | -2/Section 7 | Identified Hyp. Multirail 38549 | -2/Section 7 | Found Core Regenerator 38719 | -2/Section 7 | First assault squad dispatched 38791 | -2/Section 7 | Found Integrated Dissipator 38791 | -2/Section 7 | Installed Integrated Dissipator, increased core heat dissipation (+20) 38834 | -2/Section 7 | Found Microwarp Drive 38837 | -2/Section 7 | Warped through subspace to slip node 38954 | -2/Section 7 | Spotted B-90 Cyclops 38959 | -2/Section 7 | Spotted Alpha 7 38959 | -2/Section 7 | Spotted Alpha 7 38959 | -2/Section 7 | Spotted S7 Guard 38968 | -2/Section 7 | Found Core Membrane 38975 | -2/Section 7 | Spotted B-99 Colossus 39032 | -2/Section 7 | Found Integrity Redistributor 39032 | -2/Section 7 | Used Integrity Redistributor, redistributed integrity from core (-419) 39033 | -2/Section 7 | Core integrity fell below 50% 39047 | -2/Section 7 | Installed Core Membrane, gained immunity to corruption 39048 | -2/Section 7 | Found Integrity Redistributor 39051 | -2/Section 7 | Found Integrity Redistributor 39090 | -2/Section 7 | Found LRC Insulator 39119 | -2/Section 7 | Found Integrated Reactor 39119 | -2/Section 7 | Installed Integrated Reactor, increased core energy generation (+10) 39128 | -2/Section 7 | Core integrity fell below 20% 39157 | -2/Section 7 | Scanned by Researcher 39186 | -2/Section 7 | Installed LRC Insulator, gained EM resistance (25) 39206 | -2/Section 7 | Found Hpw. Transdimensional Reconstructor 39206 | -2/Section 7 | Warped through subspace to slip node 39214 | -2/Section 7 | Entered Access 39214 | -1/Access | Evolved 2 slots: Power x2 39537 | -1/Access | Lost 5 allies 39556 | -1/Access | Spotted B-99 Colossus 39634 | -1/Access | Build established: Generator-Mutant 39741 | -1/Access | First assault squad dispatched 39810 | -1/Access | Spotted B-99 Colossus 39997 | -1/Access | Garrison activated, responded to threat 40028 | -1/Access | Spotted B-99 Colossus 40028 | -1/Access | Spotted B-99 Colossus 40030 | -1/Access | Discovered new exit (range 6) 40032 | -1/Access | Entered Command 40180 | -1/Command | Build established: Hacker-Mutant 40252 | -1/Command | Spotted B-99 Colossus 40262 | -1/Command | Identified Potential Cannon 40279 | -1/Command | Destroyed B-99 Colossus 40295 | -1/Command | Found Prototype Ballistic Gun 40295 | -1/Command | Identified Multirail 40300 | -1/Command | Found Multirail 40572 | -1/Command | Used Integrity Redistributor, redistributed integrity from core (-368) 40581 | -1/Command | Spotted Alpha 7 40602 | -1/Command | Core integrity fell below 50% 40605 | -1/Command | Destroyed Alpha 7 40653 | -1/Command | Found Prototype Device 40653 | -1/Command | Identified Exp. ECM Suite 40677 | -1/Command | Spotted Alpha 7 40826 | -1/Command | First assault squad dispatched 40866 | -1/Command | Destroyed 7 combat bots 41117 | -1/Command | Spotted B-99 Colossus 41696 | -1/Command | Disengaged cave seal 41696 | -1/Command | Derelicts emerged from the dark tunnel 41697 | -1/Command | Welcomed Warlord to Command 41730 | -1/Command | Disengaged cave seal 41730 | -1/Command | Derelicts emerged from the dark tunnel 41900 | -1/Command | Spotted M Guard 41901 | -1/Command | Warlord commented on Warlord statues 41902 | -1/Command | Spotted M Guard 41902 | -1/Command | Spotted Combat Programmer 41902 | -1/Command | Spotted Combat Programmer 41915 | -1/Command | Combat Programmer assimilated allied SD-1BQ(s) 41916 | -1/Command | Destroyed Combat Programmer 41925 | -1/Command | Destroyed Combat Programmer 41944 | -1/Command | All MAIN.C guards destroyed 41964 | -1/Command | Found Prototype Reactor 41964 | -1/Command | Identified Zero-point Reactor 41971 | -1/Command | Lost 10 allies 42080 | -1/Command | Build established: Generator-Mutant 42097 | -1/Command | Lost 7 allies 42140 | -1/Command | 0b10 Conduit disabled 42140 | -1/Command | Met MAIN.C 42142 | -1/Command | Warlord shut down involuntarily 42185 | -1/Command | Lost 3 allies 42195 | -1/Command | Destroyed MAIN.C Shell 42196 | -1/Command | MAIN.C activated Command garrisons 42228 | -1/Command | Attacked by Warlord forces 42236 | -1/Command | Spotted MB-PLK(K) 42251 | -1/Command | Used Subatomic Replicator to create Supercharged TR 42254 | -1/Command | Warped through subspace to slip node 42254 | -1/Command | Discovered new exit (range 5) 42255 | -1/Command | Emitted hypermatrix ping 42256 | -1/Command | Used Core Regenerator, restored core integrity (+400) 42257 | -1/Command | Lost 3 allies 42257 | -1/Command | Used Integrity Redistributor, redistributed integrity from core (-459) 42260 | -1/Command | Assembled emerged from beneath the floor 42273 | -1/Command | Entered Access_0 42274 | -1/Access_0 | Sensed 3 artifacts in vicinity 42274 | -1/Access_0 | Met Architect 42280 | -1/Access_0 | Architect warped through subspace 42296 | -1/Access_0 | Lost 7 allies 42298 | -1/Access_0 | Destroyed A8 42310 | -1/Access_0 | Lost 5 parts (2p2u1w) 42323 | -1/Access_0 | Core integrity fell below 20% 42343 | -1/Access_0 | Architect warped through subspace 42382 | -1/Access_0 | Architect warped through subspace 42422 | -1/Access_0 | Core destroyed Last Messages --------------- 42340_ Acquired Enh. Armored Medium Treads. 42342_ Penetrated by Quantum Shear. Architect warps through subspace. 42369_ Quantum Shear penetrates Wall. 42374_ Quantum Shear penetrates Earth. 42374_ Penetrated by Quantum Shear. 42379_ Quantum Shear penetrates Wall. 42379_ Penetrated by Quantum Shear. Architect warps through subspace. 42385_ Destroyed Unknown Device. 42391_ Destroyed Unknown Reactor. 42391_ Destroyed Adv. Heat Sink. 42399_ Microwarped (distance 13). 42405_ HV Slug penetrates Wall. 42408_ Slug penetrates Wall. 42410_ Wall collapses. 42415_ Spacefolded through Earth. 42416_ Microwarped (distance 3). 42421_ Quantum Shear penetrates Earth. 42422_ Microwarped (distance 7). Map ----- +----------------------------------------------------+ | ????????????????????????????# | | ???????????????????????????## | | ???????????????????????????#" | | ????????????????????????????# "#""""""" | | ????????????????????????????## ### " | | ?????????????????????????????# #??## #" | | ????????????????????????????#" ##???###### | | ????????????????????????# ## #"#?????????? | | ????????????????????????## ## ###?????????? | | ?????????????????????????## ?? #??????????? | | ??????????????????????????## #??#" ###????????? | | ???????????????????????????# #???#" #????????? | | ???????????????????????????# #????# #?????????? | | ???????????????????????##?## #???#"###?????????? | | ?????????????????????### ?# ####"#???????????? | | ?????????????????????# ?### "##??????????? | | ?????????????????????# ???# #???####???? | | ?????????????????????# ##?# #???# "#???? | | ?????????????????????? #### ####" #???? | | ?????????????????????? #?## ## " #???? | | ??????????????????????? #??## ####" ##??? | | ??????????????????????? ##??## #???#" ### | | ???????????????????????? #???## "#????# ## | | ???????????????????????? ##??## "#????# #" | | ????????????????????????# ## ## ##????# " | | ????????????????????????#@ ##????## | | ????????????????????????# ;##??## | | ??????????????????????# #; ;##?# | | ??????????????????????# ##### ;; ;### | | ??????????????????????? ???# ";;;; ; #" "" | | ??????????????????????? ???### ## " "# | | ??????????????????????# ?????##?###" "" ## | | ?????????????????????? ????????### " | | ?????????????????????? ???????# # | | ????????????????????? ????????## "" # | | ????????????????????? ?????????# ""### | | ????????????????????? ?????????## ####?####### # | | ???????????????????? ??????????##????????????## | | ???????????????????? ?????????????????????????? | | ????????????????????? ??????????????????????????? | | ?????????????????????????????????????????????????? | | ?????????????????????????????????????????????????? | | ?????????????????????????????????????????????????? | | ?????????????????????????????????????????????????? | | ?????????????????????????????????????????????????? | | ?????????????????????????????????????????????????? | | ?????????????????????????????????????????????????? | | ?????????????????????????????????????????????????? | | ?????????????????????????????????????????????????? | | ?????????????????????????????????????????????????? | +----------------------------------------------------+ Best States ------------- Heat Dissipation 157 Coolant Potential 120 Energy Generation 132 Energy Capacity 2700 Matter Stores 300 Matter Capacity 300 Sight Range 20 Terrain Scan Range 24 Terrain Scan Density 10 ECM Strength 3 Jamming Range 14 Cloak Strength 4 Power Amplification 30 Additional Mass Support 20 Armor Coverage 2600 Resistance: KI 30 Resistance: TH 50 Resistance: EX 15 Resistance: EM 100 Resistance: I 15 Resistance: S 15 Resistance: P 15 Core Shielding 30 Power Shielding 90 Utility Shielding 66 Weapon Shielding 100 Point Defense Rating 240 Weapon Cycling 25 Phase Shifting 8 Evasion (%) 63 Targeting Accuracy 16 Target Analysis 10 Core Analysis 8 Recoil Reduction 6 Particle Charging 30 Offensive Hacking 56 Item Schematics ----------------- Hdn. Centrium Leg | -2/Section 7 | Archive Coolant Network | -2/Section 7 | Archive Robot Schematics ------------------ A-15 Conveyor | -2/Section 7 | Archive Fabricated ------------ Nothing Alien Tech Used ----------------- Integrated Dissipator Phase Redirector Core Reset Matrix Core Stripper Integrated Mediator Dimensional Node Initializer Microwarp Drive Transdimensional Reconstructor Integrity Redistributor Core Membrane Spacefold Activator Integrated Reactor LRC Insulator High-powered Transdimensional Reconstructor Subatomic Replicator Supercharged TR Core Regenerator Achievements -------------- None Challenges ------------ None Game ------ Seed FlightHeavyMonowheel Manual? 0 Play Time 05:12:02 Cumulative 420.7 hours Start 2024.07.31 @ 21:38:02 End 2024.08.04 @ 16:59:00 Sessions 29 Manual Loads 0 Difficulty Rogue Special Mode None Game No. 427 Rogue 427 Adventurer 0 Explorer 0 Win Type - Total 30 Types 16/3/5/1/2/0/3/0/0 Lore% 82 Gallery% 87 Achievement% 82 Wizard Run 0 Options --------- Layout 0 ASCII 0 Keyboard 0 Movement Arrows Keybinds 0 Fullscreen 2 Font 24/Smallcaps Map View 76x50 Zoom Use 0% Tactical HUD 1 Map Filters NONE Filters NONE Steam 1 RUN: 3168ad7c-4ca1-45a8-a471-554640b6f2d4